Body name,Directorate,Service Area Categorisation,Supplier Name,Date,Net Amount,Purpose of Spend,Procurement Classification: ProClass Label,
Solihull MBC,Managed Growth and Communities,Highways & Transport Services,Akinika(Formerly Iqor) ,25/11/2016,150.00,Purchase Card Statement Summary,311100 - Healthcare - Counselling,
Solihull MBC,Adult Social Care,Adult Social Care,Aldi,03/10/2016,129.01,Catering Provisions,111200 - Catering - Food & Beverages,
Solihull MBC,Adult Social Care,Adult Social Care,Aldi,17/10/2016,133.69,Catering Provisions,111200 - Catering - Food & Beverages,
Solihull MBC,Adult Social Care,Adult Social Care,Aldi ,25/11/2016,7.77,Purchase Card Statement Summary,111200 - Catering - Food & Beverages,
Solihull MBC,Adult Social Care,Adult Social Care,Aldi ,25/11/2016,18.13,Purchase Card Statement Summary,111200 - Catering - Food & Beverages,
Solihull MBC,Adult Social Care,Adult Social Care,Aldi ,25/11/2016,18.20,Purchase Card Statement Summary,111200 - Catering - Food & Beverages,
Solihull MBC,Adult Social Care,Adult Social Care,Aldi ,25/11/2016,22.44,Purchase Card Statement Summary,111200 - Catering - Food & Beverages,
Solihull MBC,Adult Social Care,Adult Social Care,Aldi ,25/11/2016,45.82,Purchase Card Statement Summary,111200 - Catering - Food & Beverages,
Solihull MBC,Adult Social Care,Adult Social Care,Aldi ,25/11/2016,67.25,Purchase Card Statement Summary,111200 - Catering - Food & Beverages,
Solihull MBC,Adult Social Care,Adult Social Care,Aldi ,25/11/2016,70.79,Purchase Card Statement Summary,111200 - Catering - Food & Beverages,
Solihull MBC,Adult Social Care,Adult Social Care,Aldi ,25/11/2016,84.06,Purchase Card Statement Summary,111200 - Catering - Food & Beverages,
Solihull MBC,Adult Social Care,Adult Social Care,Aldi ,25/11/2016,106.63,Purchase Card Statement Summary,111200 - Catering - Food & Beverages,
Solihull MBC,Adult Social Care,Adult Social Care,Aldi ,25/11/2016,111.36,Purchase Card Statement Summary,111200 - Catering - Food & Beverages,
Solihull MBC,Adult Social Care,Adult Social Care,Aldi ,25/11/2016,117.75,Purchase Card Statement Summary,111200 - Catering - Food & Beverages,
Solihull MBC,Adult Social Care,Adult Social Care,Aldi ,25/11/2016,142.78,Purchase Card Statement Summary,111200 - Catering - Food & Beverages,
Solihull MBC,Managed Growth and Communities - HRA,Housing Revenue Account,Alliance Disposables ,25/11/2016,21.46,General Debtors,111000 - Catering - Banquet & Catering,
Solihull MBC,Managed Growth and Communities - HRA,Housing Revenue Account,Alliance Disposables ,25/11/2016,251.95,General Debtors,111000 - Catering - Banquet & Catering,
Solihull MBC,Adult Social Care,Adult Social Care,Alton Towers,31/10/2016,5.00,Clients Expenses,299999 - Arts & Leisure Services - Not Elsewhere Classified,
Solihull MBC,Adult Social Care,Adult Social Care,Alton Towers,31/10/2016,12.08,Clients Expenses,299999 - Arts & Leisure Services - Not Elsewhere Classified,
Solihull MBC,Adult Social Care,Adult Social Care,Alton Towers ,25/11/2016,14.00,Purchase Card Statement Summary,299999 - Arts & Leisure Services - Not Elsewhere Classified,
Solihull MBC,Children's Services & Skills,Children & Education Services,Amazon Eu Sarl,25/10/2016,1.66,Clients Expenses,171111 - Education - Audio Visual,
Solihull MBC,Children's Services & Skills,Children & Education Services,Amazon UK Marketplace,18/10/2016,-1.72,Clients Expenses,161000 - Domestic Goods - Commercial,
Solihull MBC,Children's Services & Skills,Children & Education Services,Amazon UK Marketplace,07/10/2016,1.34,Clients Expenses,161000 - Domestic Goods - Commercial,
Solihull MBC,Children's Services & Skills,Children & Education Services,Amazon UK Marketplace,06/10/2016,1.66,Clients Expenses,161000 - Domestic Goods - Commercial,
Solihull MBC,Children's Services & Skills,Children & Education Services,Amazon UK Marketplace,07/10/2016,1.72,Clients Expenses,161000 - Domestic Goods - Commercial,
Solihull MBC,Children's Services & Skills,Children & Education Services,Amazon UK Marketplace,07/10/2016,2.29,Clients Expenses,161000 - Domestic Goods - Commercial,
Solihull MBC,Managed Growth and Communities,Highways & Transport Services,Amazon UK Marketplace,11/10/2016,3.32,Telephones,161000 - Domestic Goods - Commercial,
Solihull MBC,Resources,Central Services to the Public,Amazon UK Marketplace,26/10/2016,4.05,General Office Expenses,161000 - Domestic Goods - Commercial,
Solihull MBC,Children's Services & Skills,Children & Education Services,Amazon UK Marketplace,06/10/2016,8.81,Clients Expenses,161000 - Domestic Goods - Commercial,
Solihull MBC,Resources,Central Services to the Public,Amazon UK Marketplace,06/10/2016,9.15,IT Equipment & Software,161000 - Domestic Goods - Commercial,
Solihull MBC,Adult Social Care,Adult Social Care,Amazon UK Marketplace,07/10/2016,11.70,Furniture & Equipment,161000 - Domestic Goods - Commercial,
Solihull MBC,Adult Social Care,Adult Social Care,Amazon UK Marketplace,21/10/2016,12.45,Furniture & Equipment,171114 - Education - Literature,
Solihull MBC,Public Health & Commissioning,Cultural & Related Services,Amazon UK Marketplace,07/10/2016,15.58,Furniture & Equipment,171114 - Education - Literature,
Solihull MBC,Adult Social Care,Cultural & Related Services,Amazon UK Marketplace,26/10/2016,17.36,Furniture & Equipment,161000 - Domestic Goods - Commercial,
Solihull MBC,Adult Social Care,Adult Social Care,Amazon UK Marketplace,19/10/2016,20.62,Furniture & Equipment,161000 - Domestic Goods - Commercial,
Solihull MBC,Adult Social Care,Adult Social Care,Amazon UK Marketplace,15/10/2016,22.96,Furniture & Equipment,161000 - Domestic Goods - Commercial,
Solihull MBC,Public Health & Commissioning,Cultural & Related Services,Amazon UK Marketplace,07/10/2016,26.17,Furniture & Equipment,171114 - Education - Literature,
Solihull MBC,Adult Social Care,Adult Social Care,Amazon UK Marketplace,12/10/2016,33.32,Furniture & Equipment,171114 - Education - Literature,
Solihull MBC,Children's Services & Skills,Children & Education Services,Amazon UK Marketplace,03/10/2016,38.35,Clients Expenses,161000 - Domestic Goods - Commercial,
Solihull MBC,Children's Services & Skills,Children & Education Services,Amazon UK Marketplace,06/10/2016,48.42,General Office Expenses,161000 - Domestic Goods - Commercial,
Solihull MBC,Children's Services & Skills,Children & Education Services,Amazon UK Marketplace,01/11/2016,79.95,Furniture & Equipment,161000 - Domestic Goods - Commercial,
Solihull MBC,Children's Services & Skills,Children & Education Services,Amazon UK Marketplace ,25/11/2016,-4.07,Purchase Card Statement Summary,161000 - Domestic Goods - Commercial,
Solihull MBC,Children's Services - DSG Central.,Children & Education Services,Amazon UK Marketplace ,25/11/2016,2.98,Purchase Card Statement Summary,161000 - Domestic Goods - Commercial,
Solihull MBC,Children's Services - DSG Central.,Children & Education Services,Amazon UK Marketplace ,25/11/2016,3.99,Purchase Card Statement Summary,161000 - Domestic Goods - Commercial,
Solihull MBC,Children's Services & Skills,Children & Education Services,Amazon UK Marketplace ,25/11/2016,4.07,Purchase Card Statement Summary,161000 - Domestic Goods - Commercial,
Solihull MBC,Children's Services - DSG Central.,Children & Education Services,Amazon UK Marketplace ,25/11/2016,4.30,Purchase Card Statement Summary,171114 - Education - Literature,
Solihull MBC,Resources,Central Services to the Public,Amazon UK Marketplace ,25/11/2016,4.99,Purchase Card Statement Summary,161000 - Domestic Goods - Commercial,
Solihull MBC,Managed Growth and Communities - HRA,Housing Revenue Account,Amazon UK Marketplace ,25/11/2016,6.42,General Debtors,161000 - Domestic Goods - Commercial,
Solihull MBC,Resources,Central Services to the Public,Amazon UK Marketplace ,25/11/2016,7.11,Purchase Card Statement Summary,171114 - Education - Literature,
Solihull MBC,Children's Services & Skills,Children & Education Services,Amazon UK Marketplace ,25/11/2016,8.90,Purchase Card Statement Summary,161000 - Domestic Goods - Commercial,
Solihull MBC,Managed Growth and Communities - HRA,Housing Revenue Account,Amazon UK Marketplace ,25/11/2016,12.30,General Debtors,161000 - Domestic Goods - Commercial,
Solihull MBC,Children's Services - DSG Central.,Children & Education Services,Amazon UK Marketplace ,25/11/2016,13.50,Purchase Card Statement Summary,161000 - Domestic Goods - Commercial,
Solihull MBC,Adult Social Care,Cultural & Related Services,Amazon UK Marketplace ,25/11/2016,17.48,Purchase Card Statement Summary,171114 - Education - Literature,
Solihull MBC,Adult Social Care,Adult Social Care,Amazon UK Marketplace ,25/11/2016,19.95,Purchase Card Statement Summary,171114 - Education - Literature,
Solihull MBC,Resources,Central Services to the Public,Amazon UK Marketplace ,25/11/2016,19.96,Purchase Card Statement Summary,161000 - Domestic Goods - Commercial,
Solihull MBC,Children's Services - DSG Central.,Children & Education Services,Amazon UK Marketplace ,25/11/2016,22.08,Purchase Card Statement Summary,161000 - Domestic Goods - Commercial,
Solihull MBC,Resources,Central Services to the Public,Amazon UK Marketplace ,25/11/2016,23.64,Purchase Card Statement Summary,161000 - Domestic Goods - Commercial,
Solihull MBC,Managed Growth and Communities - HRA,Housing Revenue Account,Amazon UK Marketplace ,25/11/2016,24.90,General Debtors,161000 - Domestic Goods - Commercial,
Solihull MBC,Resources,Central Services to the Public,Amazon UK Marketplace ,25/11/2016,24.95,Purchase Card Statement Summary,171114 - Education - Literature,
Solihull MBC,Resources,Central Services to the Public,Amazon UK Marketplace ,25/11/2016,26.96,Purchase Card Statement Summary,161000 - Domestic Goods - Commercial,
Solihull MBC,Adult Social Care,Adult Social Care,Amazon UK Marketplace ,25/11/2016,28.65,Purchase Card Statement Summary,161000 - Domestic Goods - Commercial,
Solihull MBC,Managed Growth and Communities,Other Housing Services,Amazon UK Marketplace ,25/11/2016,60.35,Purchase Card Statement Summary,161000 - Domestic Goods - Commercial,
Solihull MBC,Children's Services & Skills,Children & Education Services,Amazon UK Marketplace ,25/11/2016,62.73,Purchase Card Statement Summary,171114 - Education - Literature,
Solihull MBC,Adult Social Care,Adult Social Care,Amazon UK Marketplace ,25/11/2016,69.50,Purchase Card Statement Summary,161000 - Domestic Goods - Commercial,
Solihull MBC,Adult Social Care,Central Services to the Public,Amazon UK Marketplace ,25/11/2016,69.99,Purchase Card Statement Summary,161000 - Domestic Goods - Commercial,
Solihull MBC,Managed Growth and Communities - HRA,Housing Revenue Account,Amazon UK Marketplace ,25/11/2016,74.70,General Debtors,171114 - Education - Literature,
Solihull MBC,Managed Growth and Communities,Other Housing Services,Amazon UK Marketplace ,25/11/2016,79.90,Purchase Card Statement Summary,161000 - Domestic Goods - Commercial,
Solihull MBC,Managed Growth and Communities - HRA,Housing Revenue Account,Amazon UK Marketplace ,25/11/2016,104.25,General Debtors,161000 - Domestic Goods - Commercial,
Solihull MBC,Adult Social Care,Adult Social Care,Amazon UK Marketplace ,25/11/2016,113.28,Purchase Card Statement Summary,161000 - Domestic Goods - Commercial,
Solihull MBC,Adult Social Care,Central Services to the Public,Amazon UK Marketplace ,25/11/2016,130.06,Purchase Card Statement Summary,161000 - Domestic Goods - Commercial,
Solihull MBC,Children's Services - DSG Central.,Children & Education Services,Amazon UK Marketplace ,25/11/2016,133.84,Purchase Card Statement Summary,161000 - Domestic Goods - Commercial,
Solihull MBC,Managed Growth and Communities,Other Housing Services,Amazon UK Marketplace ,25/11/2016,148.24,Purchase Card Statement Summary,161000 - Domestic Goods - Commercial,
Solihull MBC,Children's Services & Skills,Children & Education Services,Amazon UK Retail,20/10/2016,10.33,General Office Expenses,161000 - Domestic Goods - Commercial,
Solihull MBC,Adult Social Care,Adult Social Care,Amazon UK Retail,16/10/2016,11.23,Furniture & Equipment,161000 - Domestic Goods - Commercial,
Solihull MBC,Children's Services & Skills,Children & Education Services,Amazon UK Retail,20/10/2016,13.09,General Office Expenses,161000 - Domestic Goods - Commercial,
Solihull MBC,Adult Social Care,Adult Social Care,Amazon UK Retail,18/10/2016,45.21,Furniture & Equipment,161000 - Domestic Goods - Commercial,
Solihull MBC,Resources,Central Services to the Public,Amazon UK Retail ,25/11/2016,8.99,Purchase Card Statement Summary,161000 - Domestic Goods - Commercial,
Solihull MBC,Children's Services - DSG Central.,Children & Education Services,Amazon UK Retail ,25/11/2016,17.83,Purchase Card Statement Summary,161000 - Domestic Goods - Commercial,
Solihull MBC,Children's Services & Skills,Children & Education Services,Amazon UK Retail ,25/11/2016,29.08,Purchase Card Statement Summary,161000 - Domestic Goods - Commercial,
Solihull MBC,Children's Services - DSG Central.,Children & Education Services,Amazon UK Retail ,25/11/2016,50.00,Purchase Card Statement Summary,161000 - Domestic Goods - Commercial,
Solihull MBC,Resources,Central Services to the Public,Amazon UK Retail ,25/11/2016,93.14,Purchase Card Statement Summary,161000 - Domestic Goods - Commercial,
Solihull MBC,Adult Social Care,Adult Social Care,Amazon UK Retail Amazon.C ,25/11/2016,14.74,Purchase Card Statement Summary,161000 - Domestic Goods - Commercial,
Solihull MBC,Resources,Central Services to the Public,Amazon UK Retail Amazon.C ,25/11/2016,19.66,Purchase Card Statement Summary,161000 - Domestic Goods - Commercial,
Solihull MBC,Children's Services - DSG Central.,Children & Education Services,Amazon UK Retail Amazon.C ,25/11/2016,30.00,Purchase Card Statement Summary,161000 - Domestic Goods - Commercial,
Solihull MBC,Managed Growth and Communities - HRA,Housing Revenue Account,Amoma.com Hotels ,25/11/2016,238.94,General Debtors,261600 - Human Resources - Travel & Subsistence,
Solihull MBC,Children's Services & Skills,Children & Education Services,Andertons Music ,25/11/2016,527.50,Purchase Card Statement Summary,291110 - Arts & Leisure Services - Professional Musical Instruments,
Solihull MBC,Children's Services - DSG Central.,Children & Education Services,Apple Online Store GBP ,25/11/2016,275.00,Purchase Card Statement Summary,169999 - Domestic Goods - Not Elsewhere Classified,
Solihull MBC,Managed Growth and Communities - HRA,Housing Revenue Account,Argos,26/10/2016,33.32,Purchase Card Statement Summary,169999 - Domestic Goods - Not Elsewhere Classified,
Solihull MBC,Managed Growth and Communities - HRA,Housing Revenue Account,Argos,26/10/2016,66.66,Purchase Card Statement Summary,169999 - Domestic Goods - Not Elsewhere Classified,
Solihull MBC,Children's Services & Skills,Children & Education Services,Argos Ltd ,25/11/2016,4.99,Purchase Card Statement Summary,169999 - Domestic Goods - Not Elsewhere Classified,
Solihull MBC,Adult Social Care,Adult Social Care,Argos Ltd ,25/11/2016,11.48,Purchase Card Statement Summary,169999 - Domestic Goods - Not Elsewhere Classified,
Solihull MBC,Adult Social Care,Other Housing Services,Argos Ltd ,25/11/2016,15.98,Purchase Card Statement Summary,169999 - Domestic Goods - Not Elsewhere Classified,
Solihull MBC,Children's Services & Skills,Children & Education Services,Argos Ltd ,25/11/2016,16.99,Purchase Card Statement Summary,169999 - Domestic Goods - Not Elsewhere Classified,
Solihull MBC,Adult Social Care,Other Housing Services,Argos Ltd ,25/11/2016,18.98,Purchase Card Statement Summary,169999 - Domestic Goods - Not Elsewhere Classified,
Solihull MBC,Adult Social Care,Adult Social Care,Argos Ltd ,25/11/2016,22.97,Purchase Card Statement Summary,169999 - Domestic Goods - Not Elsewhere Classified,
Solihull MBC,Adult Social Care,Adult Social Care,Argos Ltd ,25/11/2016,24.99,Purchase Card Statement Summary,169999 - Domestic Goods - Not Elsewhere Classified,
Solihull MBC,Children's Services & Skills,Children & Education Services,Argos Ltd ,25/11/2016,45.55,Purchase Card Statement Summary,169999 - Domestic Goods - Not Elsewhere Classified,
Solihull MBC,Adult Social Care,Other Housing Services,Argos Ltd ,25/11/2016,55.95,Purchase Card Statement Summary,169999 - Domestic Goods - Not Elsewhere Classified,
Solihull MBC,Managed Growth and Communities,Other Housing Services,Argos Ltd ,25/11/2016,69.98,Purchase Card Statement Summary,169999 - Domestic Goods - Not Elsewhere Classified,
Solihull MBC,Adult Social Care,Adult Social Care,Argos Ltd ,25/11/2016,77.97,Purchase Card Statement Summary,169999 - Domestic Goods - Not Elsewhere Classified,
Solihull MBC,Children's Services & Skills,Children & Education Services,Argos Retail Group,05/10/2016,20.82,Clients Expenses,169999 - Domestic Goods - Not Elsewhere Classified,
Solihull MBC,Children's Services & Skills,Children & Education Services,Argos Retail Group,05/10/2016,20.82,Clients Expenses,169999 - Domestic Goods - Not Elsewhere Classified,
Solihull MBC,Children's Services & Skills,Children & Education Services,Argos Retail Group,21/10/2016,91.65,Clients Expenses,169999 - Domestic Goods - Not Elsewhere Classified,
Solihull MBC,Children's Services & Skills,Children & Education Services,Argos Retail Group,07/10/2016,94.95,Clients Expenses,169999 - Domestic Goods - Not Elsewhere Classified,
Solihull MBC,Children's Services & Skills,Children & Education Services,Argos Retail Group,19/10/2016,167.78,Clients Expenses,169999 - Domestic Goods - Not Elsewhere Classified,
Solihull MBC,Children's Services & Skills,Children & Education Services,Argos Retail Group,19/10/2016,220.78,Clients Expenses,169999 - Domestic Goods - Not Elsewhere Classified,
Solihull MBC,Children's Services & Skills,Children & Education Services,Argos Retail Group,19/10/2016,262.87,Clients Expenses,169999 - Domestic Goods - Not Elsewhere Classified,
Solihull MBC,Children's Services & Skills,Children & Education Services,Argos Retail Group ,25/11/2016,3.74,Purchase Card Statement Summary,169999 - Domestic Goods - Not Elsewhere Classified,
Solihull MBC,Children's Services & Skills,Children & Education Services,Argos Retail Group ,25/11/2016,14.99,Purchase Card Statement Summary,169999 - Domestic Goods - Not Elsewhere Classified,
Solihull MBC,Children's Services & Skills,Children & Education Services,Argos Retail Group ,25/11/2016,18.94,Purchase Card Statement Summary,169999 - Domestic Goods - Not Elsewhere Classified,
Solihull MBC,Children's Services & Skills,Children & Education Services,Argos Retail Group ,25/11/2016,19.99,Purchase Card Statement Summary,169999 - Domestic Goods - Not Elsewhere Classified,
Solihull MBC,Adult Social Care,Adult Social Care,Argos Retail Group ,25/11/2016,19.99,Purchase Card Statement Summary,169999 - Domestic Goods - Not Elsewhere Classified,
Solihull MBC,Children's Services & Skills,Children & Education Services,Argos Retail Group ,25/11/2016,29.00,Purchase Card Statement Summary,169999 - Domestic Goods - Not Elsewhere Classified,
Solihull MBC,Children's Services & Skills,Children & Education Services,Argos Retail Group ,25/11/2016,29.99,Purchase Card Statement Summary,169999 - Domestic Goods - Not Elsewhere Classified,
Solihull MBC,Children's Services & Skills,Children & Education Services,Argos Retail Group ,25/11/2016,39.99,Purchase Card Statement Summary,169999 - Domestic Goods - Not Elsewhere Classified,
Solihull MBC,Children's Services & Skills,Children & Education Services,Argos Retail Group ,25/11/2016,48.72,Purchase Card Statement Summary,169999 - Domestic Goods - Not Elsewhere Classified,
Solihull MBC,Children's Services & Skills,Children & Education Services,Argos Retail Group ,25/11/2016,49.99,Purchase Card Statement Summary,169999 - Domestic Goods - Not Elsewhere Classified,
Solihull MBC,Children's Services & Skills,Children & Education Services,Argos Retail Group ,25/11/2016,64.95,Purchase Card Statement Summary,169999 - Domestic Goods - Not Elsewhere Classified,
Solihull MBC,Children's Services & Skills,Children & Education Services,Argos Retail Group ,25/11/2016,73.94,Purchase Card Statement Summary,169999 - Domestic Goods - Not Elsewhere Classified,
Solihull MBC,Children's Services & Skills,Children & Education Services,Argos Retail Group ,25/11/2016,160.95,Purchase Card Statement Summary,169999 - Domestic Goods - Not Elsewhere Classified,
Solihull MBC,Children's Services & Skills,Children & Education Services,Argos Retail Group ,25/11/2016,166.94,Purchase Card Statement Summary,169999 - Domestic Goods - Not Elsewhere Classified,
Solihull MBC,Children's Services & Skills,Children & Education Services,Argos Retail Group ,25/11/2016,189.99,Purchase Card Statement Summary,169999 - Domestic Goods - Not Elsewhere Classified,
Solihull MBC,Children's Services & Skills,Children & Education Services,Argos Retail Group ,25/11/2016,206.93,Purchase Card Statement Summary,169999 - Domestic Goods - Not Elsewhere Classified,
Solihull MBC,Children's Services & Skills,Children & Education Services,Argos Retail Group ,25/11/2016,211.92,Purchase Card Statement Summary,169999 - Domestic Goods - Not Elsewhere Classified,
Solihull MBC,Children's Services & Skills,Children & Education Services,Argos Retail Group ,25/11/2016,217.73,Purchase Card Statement Summary,169999 - Domestic Goods - Not Elsewhere Classified,
Solihull MBC,Managed Growth and Communities,Highways & Transport Services,Argos Retail Group ,25/11/2016,786.87,Purchase Card Statement Summary,169999 - Domestic Goods - Not Elsewhere Classified,
Solihull MBC,Resources,Central Services to the Public,Arriva Trains Wale,16/10/2016,37.40,Purchase Card Statement Summary,261600 - Human Resources - Travel & Subsistence,
Solihull MBC,Resources,Children & Education Services,Asda  Stores 5880,10/10/2016,3.45,Catering Provisions,111200 - Catering - Food & Beverages,
Solihull MBC,Adult Social Care,Adult Social Care,Asda  Stores 5880,21/10/2016,6.30,Cleaning,111200 - Catering - Food & Beverages,
Solihull MBC,Adult Social Care,Adult Social Care,Asda  Stores 5880,18/10/2016,10.00,Cleaning,111200 - Catering - Food & Beverages,
Solihull MBC,Adult Social Care,Adult Social Care,Asda  Stores 5880,13/10/2016,10.10,Catering Provisions,111200 - Catering - Food & Beverages,
Solihull MBC,Adult Social Care,Adult Social Care,Asda  Stores 5880,13/10/2016,17.78,Cleaning,111200 - Catering - Food & Beverages,
Solihull MBC,Adult Social Care,Adult Social Care,Asda  Stores 5880,23/10/2016,20.67,Catering Provisions,111200 - Catering - Food & Beverages,
Solihull MBC,Adult Social Care,Adult Social Care,Asda  Stores 5880,25/10/2016,28.78,Catering Provisions,111200 - Catering - Food & Beverages,
Solihull MBC,Adult Social Care,Adult Social Care,Asda  Stores 5880,18/10/2016,115.99,Catering Provisions,111200 - Catering - Food & Beverages,
Solihull MBC,Public Health & Commissioning,Cultural & Related Services,Asda Home Shopping,10/10/2016,-19.00,Furniture & Equipment,111200 - Catering - Food & Beverages,
Solihull MBC,Public Health & Commissioning,Cultural & Related Services,Asda Home Shopping,10/10/2016,29.00,Furniture & Equipment,111200 - Catering - Food & Beverages,
Solihull MBC,Adult Social Care,Adult Social Care,Asda Stores 5881,13/10/2016,0.95,Catering Provisions,111200 - Catering - Food & Beverages,
Solihull MBC,Adult Social Care,Adult Social Care,Asda Stores 5881,20/10/2016,5.17,Catering Provisions,111200 - Catering - Food & Beverages,
Solihull MBC,Adult Social Care,Central Services to the Public,Asda Stores 5881,20/10/2016,10.95,General Office Expenses,111200 - Catering - Food & Beverages,
Solihull MBC,Resources,Central Services to the Public,Asda Stores 5881,14/10/2016,27.80,General Office Expenses,111200 - Catering - Food & Beverages,
Solihull MBC,Adult Social Care,Adult Social Care,Asda Stores 5881,03/10/2016,33.47,Catering Provisions,111200 - Catering - Food & Beverages,
Solihull MBC,Adult Social Care,Adult Social Care,Asda Stores 5881,10/10/2016,39.79,Catering Provisions,111200 - Catering - Food & Beverages,
Solihull MBC,Adult Social Care,Adult Social Care,Asda Stores 5881,26/10/2016,41.38,Catering Provisions,111200 - Catering - Food & Beverages,
Solihull MBC,Adult Social Care,Adult Social Care,Asda Stores 5881 ,25/11/2016,3.05,Purchase Card Statement Summary,111200 - Catering - Food & Beverages,
Solihull MBC,Adult Social Care,Adult Social Care,Asda Stores 5881 ,25/11/2016,3.08,Purchase Card Statement Summary,111200 - Catering - Food & Beverages,
Solihull MBC,Adult Social Care,Adult Social Care,Asda Stores 5881 ,25/11/2016,3.46,Purchase Card Statement Summary,111200 - Catering - Food & Beverages,
Solihull MBC,Adult Social Care,Adult Social Care,Asda Stores 5881 ,25/11/2016,5.00,Purchase Card Statement Summary,111200 - Catering - Food & Beverages,
Solihull MBC,Adult Social Care,Adult Social Care,Asda Stores 5881 ,25/11/2016,5.63,Purchase Card Statement Summary,111200 - Catering - Food & Beverages,
Solihull MBC,Adult Social Care,Adult Social Care,Asda Stores 5881 ,25/11/2016,5.96,Purchase Card Statement Summary,111200 - Catering - Food & Beverages,
Solihull MBC,Adult Social Care,Adult Social Care,Asda Stores 5881 ,25/11/2016,6.60,Purchase Card Statement Summary,111200 - Catering - Food & Beverages,
Solihull MBC,Adult Social Care,Adult Social Care,Asda Stores 5881 ,25/11/2016,6.75,Purchase Card Statement Summary,111200 - Catering - Food & Beverages,
Solihull MBC,Adult Social Care,Adult Social Care,Asda Stores 5881 ,25/11/2016,7.00,Purchase Card Statement Summary,111200 - Catering - Food & Beverages,
Solihull MBC,Adult Social Care,Adult Social Care,Asda Stores 5881 ,25/11/2016,7.50,Purchase Card Statement Summary,111200 - Catering - Food & Beverages,
Solihull MBC,Adult Social Care,Adult Social Care,Asda Stores 5881 ,25/11/2016,7.60,Purchase Card Statement Summary,111200 - Catering - Food & Beverages,
Solihull MBC,Adult Social Care,Adult Social Care,Asda Stores 5881 ,25/11/2016,8.35,Purchase Card Statement Summary,111200 - Catering - Food & Beverages,
Solihull MBC,Adult Social Care,Adult Social Care,Asda Stores 5881 ,25/11/2016,10.00,Purchase Card Statement Summary,111200 - Catering - Food & Beverages,
Solihull MBC,Adult Social Care,Adult Social Care,Asda Stores 5881 ,25/11/2016,10.26,Purchase Card Statement Summary,111200 - Catering - Food & Beverages,
Solihull MBC,Adult Social Care,Adult Social Care,Asda Stores 5881 ,25/11/2016,11.00,Purchase Card Statement Summary,111200 - Catering - Food & Beverages,
Solihull MBC,Adult Social Care,Adult Social Care,Asda Stores 5881 ,25/11/2016,11.12,Purchase Card Statement Summary,111200 - Catering - Food & Beverages,
Solihull MBC,Managed Growth and Communities,Cultural & Related Services,Asda Stores 5881 ,25/11/2016,12.00,Purchase Card Statement Summary,111200 - Catering - Food & Beverages,
Solihull MBC,Managed Growth and Communities - HRA,Housing Revenue Account,Asda Stores 5881 ,25/11/2016,14.95,General Debtors,111200 - Catering - Food & Beverages,
Solihull MBC,Adult Social Care,Adult Social Care,Asda Stores 5881 ,25/11/2016,16.00,Purchase Card Statement Summary,111200 - Catering - Food & Beverages,
Solihull MBC,Adult Social Care,Adult Social Care,Asda Stores 5881 ,25/11/2016,17.06,Purchase Card Statement Summary,111200 - Catering - Food & Beverages,
Solihull MBC,Adult Social Care,Adult Social Care,Asda Stores 5881 ,25/11/2016,17.50,Purchase Card Statement Summary,111200 - Catering - Food & Beverages,
Solihull MBC,Adult Social Care,Adult Social Care,Asda Stores 5881 ,25/11/2016,19.58,Purchase Card Statement Summary,111200 - Catering - Food & Beverages,
Solihull MBC,Adult Social Care,Adult Social Care,Asda Stores 5881 ,25/11/2016,24.20,Purchase Card Statement Summary,111200 - Catering - Food & Beverages,
Solihull MBC,Adult Social Care,Adult Social Care,Asda Stores 5881 ,25/11/2016,24.80,Purchase Card Statement Summary,111200 - Catering - Food & Beverages,
Solihull MBC,Adult Social Care,Adult Social Care,Asda Stores 5881 ,25/11/2016,25.36,Purchase Card Statement Summary,111200 - Catering - Food & Beverages,
Solihull MBC,Adult Social Care,Adult Social Care,Asda Stores 5881 ,25/11/2016,33.64,Purchase Card Statement Summary,111200 - Catering - Food & Beverages,
Solihull MBC,Adult Social Care,Adult Social Care,Asda Stores 5881 ,25/11/2016,38.79,Purchase Card Statement Summary,111200 - Catering - Food & Beverages,
Solihull MBC,Adult Social Care,Adult Social Care,Asda Stores 5881 ,25/11/2016,42.24,Purchase Card Statement Summary,111200 - Catering - Food & Beverages,
Solihull MBC,Adult Social Care,Adult Social Care,Asda Stores 5881 ,25/11/2016,44.36,Purchase Card Statement Summary,111200 - Catering - Food & Beverages,
Solihull MBC,Adult Social Care,Adult Social Care,Asda Stores 5881 ,25/11/2016,46.36,Purchase Card Statement Summary,111200 - Catering - Food & Beverages,
Solihull MBC,Adult Social Care,Adult Social Care,Asda Stores 5881 ,25/11/2016,124.90,Purchase Card Statement Summary,111200 - Catering - Food & Beverages,
Solihull MBC,Adult Social Care,Adult Social Care,Asda Stores 5881 ,25/11/2016,139.16,Purchase Card Statement Summary,111200 - Catering - Food & Beverages,
Solihull MBC,Adult Social Care,Adult Social Care,Asda Stores 5881 ,25/11/2016,141.35,Purchase Card Statement Summary,111200 - Catering - Food & Beverages,
Solihull MBC,Children's Services & Skills,Children & Education Services,Asda Stores 5881 ,25/11/2016,175.00,Purchase Card Statement Summary,111200 - Catering - Food & Beverages,
Solihull MBC,Adult Social Care,Adult Social Care,Asda Superstore ,25/11/2016,22.12,Purchase Card Statement Summary,111200 - Catering - Food & Beverages,
Solihull MBC,Adult Social Care,Adult Social Care,Asda Superstore ,25/11/2016,23.03,Purchase Card Statement Summary,111200 - Catering - Food & Beverages,
Solihull MBC,Adult Social Care,Adult Social Care,Asda Superstore ,25/11/2016,124.13,Purchase Card Statement Summary,111200 - Catering - Food & Beverages,
Solihull MBC,Adult Social Care,Adult Social Care,Asda� Stores 5880 ,25/11/2016,23.55,Purchase Card Statement Summary,111200 - Catering - Food & Beverages,
Solihull MBC,Adult Social Care,Adult Social Care,Assembly Room ,25/11/2016,8.54,Purchase Card Statement Summary,261600 - Human Resources - Travel & Subsistence,
Solihull MBC,Adult Social Care,Adult Social Care,Assembly Room ,25/11/2016,11.99,Purchase Card Statement Summary,261600 - Human Resources - Travel & Subsistence,
Solihull MBC,Adult Social Care,Other Housing Services,B & Q 1047 ,25/11/2016,-29.00,Purchase Card Statement Summary,102500 - Building Construction Materials - Timber,
Solihull MBC,Managed Growth and Communities,Environmental and Regulatory Services,B & Q 1047 ,25/11/2016,6.00,Purchase Card Statement Summary,102500 - Building Construction Materials - Timber,
Solihull MBC,Resources,Central Services to the Public,B & Q 1047 ,25/11/2016,10.00,Purchase Card Statement Summary,102500 - Building Construction Materials - Timber,
Solihull MBC,Managed Growth and Communities,Cultural & Related Services,B & Q 1047 ,25/11/2016,18.71,Purchase Card Statement Summary,102500 - Building Construction Materials - Timber,
Solihull MBC,Adult Social Care,Other Housing Services,B & Q 1047 ,25/11/2016,19.00,Purchase Card Statement Summary,102500 - Building Construction Materials - Timber,
Solihull MBC,Adult Social Care,Other Housing Services,B & Q 1047 ,25/11/2016,29.00,Purchase Card Statement Summary,102500 - Building Construction Materials - Timber,
Solihull MBC,Managed Growth and Communities,Cultural & Related Services,B & Q 1047 ,25/11/2016,35.00,Purchase Card Statement Summary,102500 - Building Construction Materials - Timber,
Solihull MBC,Adult Social Care,Other Housing Services,B & Q 1047 ,25/11/2016,37.00,Purchase Card Statement Summary,102500 - Building Construction Materials - Timber,
Solihull MBC,Resources,Central Services to the Public,B & Q 1047 ,25/11/2016,39.72,Purchase Card Statement Summary,102500 - Building Construction Materials - Timber,
Solihull MBC,Managed Growth and Communities,Highways & Transport Services,B & Q 1047 ,25/11/2016,43.08,Purchase Card Statement Summary,102500 - Building Construction Materials - Timber,
Solihull MBC,Adult Social Care,Adult Social Care,B&M Retail,18/10/2016,26.52,Catering Provisions,169999 - Domestic Goods - Not Elsewhere Classified,
Solihull MBC,Managed Growth and Communities - HRA,Housing Revenue Account,BCC Register Offic,25/10/2016,-6.00,General Debtors,209999 - Financial Services - Not Elsewhere Classified,
Solihull MBC,Managed Growth and Communities - HRA,Housing Revenue Account,BCC Register Offic,21/10/2016,15.00,General Debtors,209999 - Financial Services - Not Elsewhere Classified,
Solihull MBC,Adult Social Care,Adult Social Care,Berwick Care Equipment-V,07/10/2016,71.15,Cleaning,311300 - Healthcare - Equipment,
Solihull MBC,Managed Growth and Communities,Environmental and Regulatory Services,Bhamcouncilphone ,25/11/2016,40.00,Purchase Card Statement Summary,209999 - Financial Services - Not Elsewhere Classified,
Solihull MBC,Managed Growth and Communities,Environmental and Regulatory Services,Birmingham Dogs Home ,25/11/2016,-4.75,Purchase Card Statement Summary,201710 - Financial Services - Grants - Charitable,
Solihull MBC,Managed Growth and Communities,Environmental and Regulatory Services,Birmingham Dogs Home ,25/11/2016,4.75,Purchase Card Statement Summary,201710 - Financial Services - Grants - Charitable,
Solihull MBC,Resources,Corporate & Democratic Core,Blurb- Inc.,17/10/2016,189.60,Materials,349999 - Stationery - Not Elsewhere Classified,
Solihull MBC,Managed Growth and Communities,Environmental and Regulatory Services,Bodycare H Beauty ,25/11/2016,0.99,Purchase Card Statement Summary,169999 - Domestic Goods - Not Elsewhere Classified,
Solihull MBC,Adult Social Care,Adult Social Care,Boots 6580 ,25/11/2016,17.00,Purchase Card Statement Summary,311200 - Healthcare - Drugs,
Solihull MBC,Managed Growth and Communities,Environmental and Regulatory Services,Brueton Park Service Stat,14/10/2016,34.67,Materials,381100 - Vehicle Management - Fuel,
Solihull MBC,Adult Social Care,Adult Social Care,Burger King ,25/11/2016,21.18,Purchase Card Statement Summary,261600 - Human Resources - Travel & Subsistence,
Solihull MBC,Children's Services & Skills,Children & Education Services,Cadbury World Internet,21/10/2016,39.27,Clients Expenses,299999 - Arts & Leisure Services - Not Elsewhere Classified,
Solihull MBC,Resources,Central Services to the Public,Caffe Nero,03/10/2016,3.62,Purchase Card Statement Summary,261600 - Human Resources - Travel & Subsistence,
Solihull MBC,Resources,Central Services to the Public,Caffe Nero,03/10/2016,3.71,Purchase Card Statement Summary,261600 - Human Resources - Travel & Subsistence,
Solihull MBC,Managed Growth and Communities,Highways & Transport Services,Cash Advance Fee ,25/11/2016,2.95,Purchase Card Statement Summary,#N/A,
Solihull MBC,Managed Growth and Communities,Highways & Transport Services,Cash Advance Fee ,25/11/2016,5.90,Purchase Card Statement Summary,#N/A,
Solihull MBC,Adult Social Care,Adult Social Care,Castle Nurseries,20/10/2016,6.99,Catering Provisions,241100 - Horticultural - Seeds & Plants,
Solihull MBC,Adult Social Care,Adult Social Care,Central Eng Coop,17/10/2016,0.04,Catering Provisions,169999 - Domestic Goods - Not Elsewhere Classified,
Solihull MBC,Adult Social Care,Adult Social Care,Central Eng Coop,27/10/2016,0.82,Catering Provisions,169999 - Domestic Goods - Not Elsewhere Classified,
Solihull MBC,Adult Social Care,Adult Social Care,Central Eng Coop,04/10/2016,1.67,Catering Provisions,169999 - Domestic Goods - Not Elsewhere Classified,
Solihull MBC,Adult Social Care,Adult Social Care,Central Eng Coop,01/11/2016,1.71,Catering Provisions,169999 - Domestic Goods - Not Elsewhere Classified,
Solihull MBC,Adult Social Care,Adult Social Care,Central Eng Coop,20/10/2016,2.54,Catering Provisions,169999 - Domestic Goods - Not Elsewhere Classified,
Solihull MBC,Adult Social Care,Adult Social Care,Central Eng Coop,24/10/2016,3.69,Catering Provisions,169999 - Domestic Goods - Not Elsewhere Classified,
Solihull MBC,Adult Social Care,Adult Social Care,Central Eng Coop,10/10/2016,4.00,Catering Provisions,169999 - Domestic Goods - Not Elsewhere Classified,
Solihull MBC,Adult Social Care,Adult Social Care,Central Eng Coop,20/10/2016,4.70,Catering Provisions,169999 - Domestic Goods - Not Elsewhere Classified,
Solihull MBC,Adult Social Care,Adult Social Care,Central Eng Coop,20/10/2016,4.81,Catering Provisions,169999 - Domestic Goods - Not Elsewhere Classified,
Solihull MBC,Adult Social Care,Adult Social Care,Central Eng Coop,01/11/2016,5.10,Catering Provisions,169999 - Domestic Goods - Not Elsewhere Classified,
Solihull MBC,Adult Social Care,Adult Social Care,Central Eng Coop,04/10/2016,5.83,Catering Provisions,169999 - Domestic Goods - Not Elsewhere Classified,
Solihull MBC,Adult Social Care,Adult Social Care,Central Eng Coop,04/10/2016,7.97,Cleaning,169999 - Domestic Goods - Not Elsewhere Classified,
Solihull MBC,Adult Social Care,Adult Social Care,Central Eng Coop,17/10/2016,9.16,Catering Provisions,169999 - Domestic Goods - Not Elsewhere Classified,
Solihull MBC,Adult Social Care,Adult Social Care,Central Eng Coop,21/10/2016,11.23,Catering Provisions,169999 - Domestic Goods - Not Elsewhere Classified,
Solihull MBC,Adult Social Care,Adult Social Care,Central Eng Coop,27/10/2016,12.23,Catering Provisions,169999 - Domestic Goods - Not Elsewhere Classified,
Solihull MBC,Adult Social Care,Adult Social Care,Central Eng Coop,14/10/2016,18.60,Catering Provisions,169999 - Domestic Goods - Not Elsewhere Classified,
Solihull MBC,Adult Social Care,Adult Social Care,Central Eng Coop,04/10/2016,24.99,Catering Provisions,169999 - Domestic Goods - Not Elsewhere Classified,
Solihull MBC,Adult Social Care,Adult Social Care,Central Eng Coop,04/10/2016,38.77,Catering Provisions,169999 - Domestic Goods - Not Elsewhere Classified,
Solihull MBC,Managed Growth and Communities,Highways & Transport Services,Charge.Prezi.com ,25/11/2016,135.44,Purchase Card Statement Summary,271200 - Information Communications Technology - Hardware,
Solihull MBC,Managed Growth and Communities,Planning & Development Services,China Car Service ,25/11/2016,92.79,Purchase Card Statement Summary,361300 - Public Transport - Passenger Transport,
Solihull MBC,Adult Social Care,Adult Social Care,Cineworld NEC Birm ,25/11/2016,7.20,Purchase Card Statement Summary,291300 - Arts & Leisure Services - Performing Arts,
Solihull MBC,Adult Social Care,Adult Social Care,Cineworld NEC Birm ,25/11/2016,8.70,Purchase Card Statement Summary,291300 - Arts & Leisure Services - Performing Arts,
Solihull MBC,Adult Social Care,Adult Social Care,Cineworld NEC Birm ,25/11/2016,10.50,Purchase Card Statement Summary,291300 - Arts & Leisure Services - Performing Arts,
Solihull MBC,Adult Social Care,Adult Social Care,Cineworld NEC Birm ,25/11/2016,11.35,Purchase Card Statement Summary,291300 - Arts & Leisure Services - Performing Arts,
Solihull MBC,Adult Social Care,Adult Social Care,Cineworld Sol Cp,19/10/2016,8.70,Clients Expenses,291300 - Arts & Leisure Services - Performing Arts,
Solihull MBC,Resources,Central Services to the Public,Clickatell Ltd ,25/11/2016,16.32,Purchase Card Statement Summary,271699 - Information Communications Technology - Telecommunications,
Solihull MBC,Resources,Central Services to the Public,Clickatell Ltd ,25/11/2016,16.32,Purchase Card Statement Summary,271699 - Information Communications Technology - Telecommunications,
Solihull MBC,Resources,Central Services to the Public,Clickatell Ltd ,25/11/2016,16.32,Purchase Card Statement Summary,271699 - Information Communications Technology - Telecommunications,
Solihull MBC,Resources,Central Services to the Public,Comms Exp ,25/11/2016,211.20,Purchase Card Statement Summary,169999 - Domestic Goods - Not Elsewhere Classified,
Solihull MBC,Resources,Central Services to the Public,Comms Exp ,25/11/2016,263.74,Purchase Card Statement Summary,169999 - Domestic Goods - Not Elsewhere Classified,
Solihull MBC,Resources,Central Services to the Public,Comms Exp ,25/11/2016,1061.60,Purchase Card Statement Summary,169999 - Domestic Goods - Not Elsewhere Classified,
Solihull MBC,Adult Social Care,Adult Social Care,Coop Foodctr ,25/11/2016,18.74,Purchase Card Statement Summary,111200 - Catering - Food & Beverages,
Solihull MBC,Resources,Central Services to the Public,Crucial.com,13/10/2016,130.95,IT Equipment & Software,271200 - Information Communications Technology - Hardware,
Solihull MBC,Resources,Central Services to the Public,Crucial.com,13/10/2016,195.36,IT Equipment & Software,271200 - Information Communications Technology - Hardware,
Solihull MBC,Resources,Central Services to the Public,Crucial.com ,25/11/2016,24.77,Purchase Card Statement Summary,271200 - Information Communications Technology - Hardware,
Solihull MBC,Managed Growth and Communities,Highways & Transport Services,Ctrip Sh Huacheng Travel ,25/11/2016,38.79,Purchase Card Statement Summary,161000 - Domestic Goods - Commercial,
Solihull MBC,Adult Social Care,Adult Social Care,Currys,14/10/2016,237.49,Catering Provisions,169999 - Domestic Goods - Not Elsewhere Classified,
Solihull MBC,Adult Social Care,Adult Social Care,Currys S S ,25/11/2016,449.00,Purchase Card Statement Summary,169999 - Domestic Goods - Not Elsewhere Classified,
Solihull MBC,Adult Social Care,Adult Social Care,Currys S S ,25/11/2016,558.97,Purchase Card Statement Summary,169999 - Domestic Goods - Not Elsewhere Classified,
Solihull MBC,Managed Growth and Communities - HRA,Housing Revenue Account,Currys S/S,08/10/2016,37.49,Purchase Card Statement Summary,169999 - Domestic Goods - Not Elsewhere Classified,
Solihull MBC,Managed Growth and Communities - HRA,Housing Revenue Account,Darlaston Builders Mer,19/10/2016,422.50,General Debtors,109999 - Building Construction Materials - Not Elsewhere Classified,
Solihull MBC,Adult Social Care,Adult Social Care,DHL,19/10/2016,159.71,Furniture & Equipment,301100 - Mail Services - Freight,
Solihull MBC,Children's Services & Skills,Children & Education Services,Directline-Flights ,25/11/2016,152.84,Purchase Card Statement Summary,261600 - Human Resources - Travel & Subsistence,
Solihull MBC,Adult Social Care,Adult Social Care,Dobbies ,25/11/2016,5.85,Purchase Card Statement Summary,249999 - Horticultural - Not Elsewhere Classified,
Solihull MBC,Adult Social Care,Adult Social Care,Dobbies ,25/11/2016,30.40,Purchase Card Statement Summary,249999 - Horticultural - Not Elsewhere Classified,
Solihull MBC,Adult Social Care,Adult Social Care,Druckers,19/10/2016,3.12,Catering Provisions,261600 - Human Resources - Travel & Subsistence,
Solihull MBC,Adult Social Care,Adult Social Care,Dunelm Ltd ,25/11/2016,122.96,Purchase Card Statement Summary,211210 - Furniture & Soft Furnishings - Soft Furnishings,
Solihull MBC,Children's Services & Skills,Children & Education Services,DVLA Vehicle Tax,31/10/2016,167.50,Other Transport Costs,209999 - Financial Services - Not Elsewhere Classified,
Solihull MBC,Resources,Corporate & Democratic Core,DVLA Vehicle Tax ,25/11/2016,297.50,Purchase Card Statement Summary,209999 - Financial Services - Not Elsewhere Classified,
Solihull MBC,Managed Growth and Communities,Cultural & Related Services,Earlswood Nurseries ,25/11/2016,45.99,Purchase Card Statement Summary,249999 - Horticultural - Not Elsewhere Classified,
Solihull MBC,Managed Growth and Communities,Cultural & Related Services,Earlswood Nurseries ,25/11/2016,78.49,Purchase Card Statement Summary,249999 - Horticultural - Not Elsewhere Classified,
Solihull MBC,Children's Services & Skills,Children & Education Services,Edeltraud Peschla ,25/11/2016,-63.07,Purchase Card Statement Summary,279999 - Information Communications Technology - Not Elsewhere Classified,
Solihull MBC,Children's Services - DSG Central.,Children & Education Services,ELC-Internet ,25/11/2016,40.00,Purchase Card Statement Summary,169999 - Domestic Goods - Not Elsewhere Classified,
Solihull MBC,Adult Social Care,Other Housing Services,Electric Centre Ltd ,25/11/2016,6.00,Purchase Card Statement Summary,169999 - Domestic Goods - Not Elsewhere Classified,
Solihull MBC,Adult Social Care,Other Housing Services,Electric Centre Ltd ,25/11/2016,15.74,Purchase Card Statement Summary,169999 - Domestic Goods - Not Elsewhere Classified,
Solihull MBC,Adult Social Care,Other Housing Services,Electric Centre Ltd ,25/11/2016,23.99,Purchase Card Statement Summary,169999 - Domestic Goods - Not Elsewhere Classified,
Solihull MBC,Adult Social Care,Adult Social Care,Excursions ,25/11/2016,44.71,Purchase Card Statement Summary,381210 - Vehicle Management - Hire,
Solihull MBC,Adult Social Care,Adult Social Care,Excursions ,25/11/2016,45.98,Purchase Card Statement Summary,381210 - Vehicle Management - Hire,
Solihull MBC,Adult Social Care,Adult Social Care,Excursions ,25/11/2016,106.67,Purchase Card Statement Summary,381210 - Vehicle Management - Hire,
Solihull MBC,Public Health & Commissioning,Cultural & Related Services,Families Online,01/11/2016,300.00,Advertising/Publicity/Promotion,191000 - Facilities & Management Services - Advertising,
Solihull MBC,Adult Social Care,Adult Social Care,Farmfoods- Castle,03/10/2016,38.84,Catering Provisions,111200 - Catering - Food & Beverages,
Solihull MBC,Adult Social Care,Adult Social Care,Farmfoods- Castle,10/10/2016,71.15,Catering Provisions,111200 - Catering - Food & Beverages,
Solihull MBC,Adult Social Care,Adult Social Care,Farmfoods- Castle ,25/11/2016,8.99,Purchase Card Statement Summary,111200 - Catering - Food & Beverages,
Solihull MBC,Adult Social Care,Adult Social Care,Farmfoods- Castle ,25/11/2016,8.99,Purchase Card Statement Summary,111200 - Catering - Food & Beverages,
Solihull MBC,Adult Social Care,Adult Social Care,Farmfoods- Castle ,25/11/2016,22.56,Purchase Card Statement Summary,111200 - Catering - Food & Beverages,
Solihull MBC,Adult Social Care,Adult Social Care,Farmfoods- Castle ,25/11/2016,36.27,Purchase Card Statement Summary,111200 - Catering - Food & Beverages,
Solihull MBC,Resources,Corporate & Democratic Core,Fraziers Wine Merchants,01/11/2016,122.68,Reimbursements & Contributions,111200 - Catering - Food & Beverages,
Solihull MBC,Adult Social Care,Adult Social Care,Furniture Consulta,18/10/2016,1.00,Other Premise Costs,169999 - Domestic Goods - Not Elsewhere Classified,
Solihull MBC,Adult Social Care,Adult Social Care,Furniture Consulta,18/10/2016,14.30,Other Premise Costs,169999 - Domestic Goods - Not Elsewhere Classified,
Solihull MBC,Adult Social Care,Adult Social Care,George's Sea Front ,25/11/2016,24.40,Purchase Card Statement Summary,261600 - Human Resources - Travel & Subsistence,
Solihull MBC,Adult Social Care,Cultural & Related Services,GN&M Ltd ,25/11/2016,36.79,Purchase Card Statement Summary,349999 - Stationery - Not Elsewhere Classified,
Solihull MBC,Adult Social Care,Cultural & Related Services,GN&M Ltd ,25/11/2016,41.12,Purchase Card Statement Summary,349999 - Stationery - Not Elsewhere Classified,
Solihull MBC,Children's Services & Skills,Children & Education Services,Greggs PLC ,25/11/2016,10.75,Purchase Card Statement Summary,261600 - Human Resources - Travel & Subsistence,
Solihull MBC,Children's Services & Skills,Children & Education Services,GRO HM Passport Office,20/10/2016,9.25,Clients Expenses,209999 - Financial Services - Not Elsewhere Classified,
Solihull MBC,Children's Services & Skills,Children & Education Services,GRO HM Passport Office,17/10/2016,9.25,Clients Expenses,209999 - Financial Services - Not Elsewhere Classified,
Solihull MBC,Children's Services & Skills,Children & Education Services,GRO HM Passport Office,10/10/2016,9.25,Clients Expenses,209999 - Financial Services - Not Elsewhere Classified,
Solihull MBC,Children's Services & Skills,Children & Education Services,GRO HM Passport Office,18/10/2016,9.25,Clients Expenses,209999 - Financial Services - Not Elsewhere Classified,
Solihull MBC,Children's Services & Skills,Children & Education Services,GRO HM Passport Office,20/10/2016,9.25,Clients Expenses,209999 - Financial Services - Not Elsewhere Classified,
Solihull MBC,Children's Services & Skills,Children & Education Services,GRO HM Passport Office,10/10/2016,9.25,Clients Expenses,209999 - Financial Services - Not Elsewhere Classified,
Solihull MBC,Children's Services & Skills,Children & Education Services,GRO HM Passport Office,10/10/2016,9.25,Clients Expenses,209999 - Financial Services - Not Elsewhere Classified,
Solihull MBC,Children's Services & Skills,Children & Education Services,GRO HM Passport Office,10/10/2016,9.25,Clients Expenses,209999 - Financial Services - Not Elsewhere Classified,
Solihull MBC,Children's Services & Skills,Children & Education Services,GRO HM Passport Office ,25/11/2016,-9.25,Purchase Card Statement Summary,209999 - Financial Services - Not Elsewhere Classified,
Solihull MBC,Children's Services & Skills,Children & Education Services,GRO HM Passport Office ,25/11/2016,9.25,Purchase Card Statement Summary,209999 - Financial Services - Not Elsewhere Classified,
Solihull MBC,Children's Services & Skills,Children & Education Services,GRO HM Passport Office ,25/11/2016,27.75,Purchase Card Statement Summary,209999 - Financial Services - Not Elsewhere Classified,
Solihull MBC,Managed Growth and Communities,Highways & Transport Services,GWR Evesham To ,25/11/2016,81.90,Purchase Card Statement Summary,261600 - Human Resources - Travel & Subsistence,
Solihull MBC,Adult Social Care,Adult Social Care,Hall Green ,25/11/2016,6.29,Purchase Card Statement Summary,261600 - Human Resources - Travel & Subsistence,
Solihull MBC,Adult Social Care,Adult Social Care,Hall Green ,25/11/2016,6.29,Purchase Card Statement Summary,261600 - Human Resources - Travel & Subsistence,
Solihull MBC,Adult Social Care,Adult Social Care,Hall Green ,25/11/2016,20.32,Purchase Card Statement Summary,261600 - Human Resources - Travel & Subsistence,
Solihull MBC,Adult Social Care,Adult Social Care,Hare & Hounds ,25/11/2016,10.00,Purchase Card Statement Summary,261600 - Human Resources - Travel & Subsistence,
Solihull MBC,Adult Social Care,Adult Social Care,Harrisons Fish & Chips ,25/11/2016,12.00,Purchase Card Statement Summary,261600 - Human Resources - Travel & Subsistence,
Solihull MBC,Children's Services & Skills,Children & Education Services,Hatton Country World ,25/11/2016,103.25,Purchase Card Statement Summary,291100 - Arts & Leisure Services - Museums & Arts,
Solihull MBC,Managed Growth and Communities,Highways & Transport Services,Heathrow Airport ,25/11/2016,120.90,Purchase Card Statement Summary,261600 - Human Resources - Travel & Subsistence,
Solihull MBC,Adult Social Care,Cultural & Related Services,History In The Making,20/10/2016,252.35,Furniture & Equipment,141300 - Clothing - Uniforms,
Solihull MBC,Children's Services & Skills,Children & Education Services,HM Passport Office,07/10/2016,75.50,Clients Expenses,209999 - Financial Services - Not Elsewhere Classified,
Solihull MBC,Children's Services & Skills,Children & Education Services,HM Passport Office ,25/11/2016,-3.00,Purchase Card Statement Summary,209999 - Financial Services - Not Elsewhere Classified,
Solihull MBC,Resources,Central Services to the Public,HMCourts-Service.G,10/10/2016,1215.00,Court Fees,209999 - Financial Services - Not Elsewhere Classified,
Solihull MBC,Managed Growth and Communities,Environmental and Regulatory Services,Hobbycraft Group L ,25/11/2016,13.50,Purchase Card Statement Summary,171110 - Education - Arts & Crafts,
Solihull MBC,Managed Growth and Communities - HRA,Housing Revenue Account,Holiday Inns ,25/11/2016,208.00,General Debtors,261000 - Human Resources - Accommodation,
Solihull MBC,Managed Growth and Communities - HRA,Housing Revenue Account,Holiday Inns ,25/11/2016,500.00,General Debtors,261000 - Human Resources - Accommodation,
Solihull MBC,Children's Services & Skills,Children & Education Services,Home Bargains Chelmsle,14/10/2016,2.30,General Office Expenses,101400 - Building Construction Materials - General Materials,
Solihull MBC,Adult Social Care,Adult Social Care,Homebase Ltd 214 ,25/11/2016,10.00,Purchase Card Statement Summary,102500 - Building Construction Materials - Timber,
Solihull MBC,Resources,Central Services to the Public,Hp Inc UK Limited,05/10/2016,18.04,Materials,271200 - Information Communications Technology - Hardware,
Solihull MBC,Adult Social Care,Adult Social Care,Iceland,22/10/2016,6.78,Catering Provisions,111200 - Catering - Food & Beverages,
Solihull MBC,Adult Social Care,Adult Social Care,Iceland ,25/11/2016,135.37,Purchase Card Statement Summary,111200 - Catering - Food & Beverages,
Solihull MBC,Resources,Central Services to the Public,Imperial London Hotels ,25/11/2016,90.00,Purchase Card Statement Summary,261000 - Human Resources - Accommodation,
Solihull MBC,Adult Social Care,Adult Social Care,Interserve ,25/11/2016,5.95,Purchase Card Statement Summary,261600 - Human Resources - Travel & Subsistence,
Solihull MBC,Resources,Central Services to the Public,Itunes.com Bill ,25/11/2016,0.79,Purchase Card Statement Summary,171111 - Education - Audio Visual,
Solihull MBC,Resources,Central Services to the Public,Itunes.com Bill ,25/11/2016,29.80,Purchase Card Statement Summary,171111 - Education - Audio Visual,
Solihull MBC,Adult Social Care,Other Housing Services,J E Electrical Whls ,25/11/2016,6.84,Purchase Card Statement Summary,101100 - Building Construction Materials - Electrical,
Solihull MBC,Adult Social Care,Other Housing Services,J E Electrical Whls ,25/11/2016,11.58,Purchase Card Statement Summary,101100 - Building Construction Materials - Electrical,
Solihull MBC,Adult Social Care,Other Housing Services,J E Electrical Whls ,25/11/2016,13.68,Purchase Card Statement Summary,101100 - Building Construction Materials - Electrical,
Solihull MBC,Children's Services & Skills,Children & Education Services,Jfkbinding.co.uk,13/10/2016,34.94,General Office Expenses,341100 - Stationery - Sundries,
Solihull MBC,Adult Social Care,Adult Social Care,JJ Martin Moto,04/10/2016,369.00,Furniture & Equipment,301200 - Mail Services - Postage,
Solihull MBC,Managed Growth and Communities,Planning & Development Services,John Lewis ,25/11/2016,-10.00,Purchase Card Statement Summary,169999 - Domestic Goods - Not Elsewhere Classified,
Solihull MBC,Managed Growth and Communities,Planning & Development Services,John Lewis ,25/11/2016,30.05,Purchase Card Statement Summary,169999 - Domestic Goods - Not Elsewhere Classified,
Solihull MBC,Managed Growth and Communities,Planning & Development Services,John Lewis ,25/11/2016,60.00,Purchase Card Statement Summary,169999 - Domestic Goods - Not Elsewhere Classified,
Solihull MBC,Managed Growth and Communities - HRA,Housing Revenue Account,JP Photographic Ltd ,25/11/2016,19.92,General Debtors,191100 - Facilities & Management Services - Design & Photography,
Solihull MBC,Adult Social Care,Adult Social Care,JS Online Grocery ,25/11/2016,-4.00,Purchase Card Statement Summary,111200 - Catering - Food & Beverages,
Solihull MBC,Adult Social Care,Adult Social Care,JS Online Grocery ,25/11/2016,59.50,Purchase Card Statement Summary,111200 - Catering - Food & Beverages,
Solihull MBC,Adult Social Care,Adult Social Care,JS Online Grocery ,25/11/2016,108.45,Purchase Card Statement Summary,111200 - Catering - Food & Beverages,
Solihull MBC,Adult Social Care,Adult Social Care,JS Online Grocery ,25/11/2016,115.90,Purchase Card Statement Summary,111200 - Catering - Food & Beverages,
Solihull MBC,Adult Social Care,Adult Social Care,JS Online Grocery ,25/11/2016,130.24,Purchase Card Statement Summary,111200 - Catering - Food & Beverages,
Solihull MBC,Adult Social Care,Adult Social Care,JS Online Grocery ,25/11/2016,150.82,Purchase Card Statement Summary,111200 - Catering - Food & Beverages,
Solihull MBC,Adult Social Care,Adult Social Care,Knicker Bocker ,25/11/2016,26.75,Purchase Card Statement Summary,261600 - Human Resources - Travel & Subsistence,
Solihull MBC,Adult Social Care,Adult Social Care,La Nave Bistro ,25/11/2016,34.99,Purchase Card Statement Summary,291100 - Arts & Leisure Services - Museums & Arts,
Solihull MBC,Adult Social Care,Adult Social Care,Land Oak ,25/11/2016,14.75,Purchase Card Statement Summary,261600 - Human Resources - Travel & Subsistence,
Solihull MBC,Adult Social Care,Adult Social Care,Land Oak ,25/11/2016,28.80,Purchase Card Statement Summary,261600 - Human Resources - Travel & Subsistence,
Solihull MBC,Managed Growth and Communities,Planning & Development Services,Land Registry ,25/11/2016,6.00,Purchase Card Statement Summary,209999 - Financial Services - Not Elsewhere Classified,
Solihull MBC,Managed Growth and Communities,Planning & Development Services,Land Registry ,25/11/2016,6.00,Purchase Card Statement Summary,209999 - Financial Services - Not Elsewhere Classified,
Solihull MBC,Managed Growth and Communities,Planning & Development Services,Land Rover Cur ,25/11/2016,455.98,Purchase Card Statement Summary,381400 - Vehicle Management - Maintenance,
Solihull MBC,Resources,Central Services to the Public,Lend Lease Real Estate,01/11/2016,250.00,Other Employee Costs,161000 - Domestic Goods - Commercial,
Solihull MBC,Resources,Central Services to the Public,Lend Lease Real Estate,18/10/2016,12010.00,Other Employee Costs,161000 - Domestic Goods - Commercial,
Solihull MBC,Managed Growth and Communities,Planning & Development Services,Lend Lease Retail,14/10/2016,41.67,Training,151000 - Consultancy - Business,
Solihull MBC,Children's Services & Skills,Planning & Development Services,Lend Lease Retail ,25/11/2016,120.00,Purchase Card Statement Summary,151000 - Consultancy - Business,
Solihull MBC,Children's Services & Skills,Planning & Development Services,Lend Lease Retail ,25/11/2016,120.00,Purchase Card Statement Summary,151000 - Consultancy - Business,
Solihull MBC,Adult Social Care,Adult Social Care,Lidl Malta-Sta Venera ,25/11/2016,37.29,Purchase Card Statement Summary,111200 - Catering - Food & Beverages,
Solihull MBC,Resources,Central Services to the Public,London Midland Sel,10/10/2016,4.30,Purchase Card Statement Summary,261600 - Human Resources - Travel & Subsistence,
Solihull MBC,Managed Growth and Communities,Highways & Transport Services,London Midland Sel ,25/11/2016,10.10,Purchase Card Statement Summary,261600 - Human Resources - Travel & Subsistence,
Solihull MBC,Managed Growth and Communities,Highways & Transport Services,London Midland Sel ,25/11/2016,11.80,Purchase Card Statement Summary,261600 - Human Resources - Travel & Subsistence,
Solihull MBC,Managed Growth and Communities,Other Housing Services,London Midland Tic,11/10/2016,6.80,Officers Transport Costs,261600 - Human Resources - Travel & Subsistence,
Solihull MBC,Managed Growth and Communities,Other Housing Services,London Midland Tic,04/10/2016,7.50,Officers Transport Costs,261600 - Human Resources - Travel & Subsistence,
Solihull MBC,Adult Social Care,Adult Social Care,London Midland Tic ,25/11/2016,3.20,Purchase Card Statement Summary,261600 - Human Resources - Travel & Subsistence,
Solihull MBC,Children's Services & Skills,Planning & Development Services,Love2Shop.co.uk ,25/11/2016,20.99,Purchase Card Statement Summary,201711 - Financial Services - Grants - Non-charitable,
Solihull MBC,Managed Growth and Communities,Highways & Transport Services,M&J Mahoney & Sons Ltd,07/10/2016,32.43,Materials,102500 - Building Construction Materials - Timber,
Solihull MBC,Adult Social Care,Other Housing Services,M&J Mahoney & Sons Ltd ,25/11/2016,5.41,Purchase Card Statement Summary,102500 - Building Construction Materials - Timber,
Solihull MBC,Adult Social Care,Other Housing Services,M&J Mahoney & Sons Ltd ,25/11/2016,14.66,Purchase Card Statement Summary,102500 - Building Construction Materials - Timber,
Solihull MBC,Adult Social Care,Other Housing Services,M&J Mahoney & Sons Ltd ,25/11/2016,32.63,Purchase Card Statement Summary,102500 - Building Construction Materials - Timber,
Solihull MBC,Resources,Central Services to the Public,Mailbox Car Park Limited,21/10/2016,5.42,Purchase Card Statement Summary,261600 - Human Resources - Travel & Subsistence,
Solihull MBC,Resources,Central Services to the Public,Mailbox Car Park Limited,14/10/2016,6.25,Purchase Card Statement Summary,261600 - Human Resources - Travel & Subsistence,
Solihull MBC,Managed Growth and Communities,Environmental and Regulatory Services,Mailbox Car Park Limited ,25/11/2016,10.00,Purchase Card Statement Summary,261600 - Human Resources - Travel & Subsistence,
Solihull MBC,Adult Social Care,Adult Social Care,Malcolms Stores Retail ,25/11/2016,8.79,Purchase Card Statement Summary,111200 - Catering - Food & Beverages,
Solihull MBC,Adult Social Care,Adult Social Care,Marks&Spencer PLC Sf ,25/11/2016,7.50,Purchase Card Statement Summary,111200 - Catering - Food & Beverages,
Solihull MBC,Adult Social Care,Adult Social Care,Mc Donald S Bugibba ,25/11/2016,7.26,Purchase Card Statement Summary,261600 - Human Resources - Travel & Subsistence,
Solihull MBC,Adult Social Care,Adult Social Care,Mcdonalds ,25/11/2016,8.37,Purchase Card Statement Summary,261600 - Human Resources - Travel & Subsistence,
Solihull MBC,Adult Social Care,Adult Social Care,Mcdonalds ,25/11/2016,9.58,Purchase Card Statement Summary,261600 - Human Resources - Travel & Subsistence,
Solihull MBC,Adult Social Care,Adult Social Care,Mcdonalds ,25/11/2016,17.83,Purchase Card Statement Summary,261600 - Human Resources - Travel & Subsistence,
Solihull MBC,Managed Growth and Communities - HRA,Housing Revenue Account,Microsoft,28/10/2016,49.99,Purchase Card Statement Summary,299999 - Arts & Leisure Services - Not Elsewhere Classified,
Solihull MBC,Adult Social Care,Adult Social Care,Mr Kebab Crepes Cafe ,25/11/2016,18.86,Purchase Card Statement Summary,261600 - Human Resources - Travel & Subsistence,
Solihull MBC,Adult Social Care,Adult Social Care,Mr Kebab Crepes Cafe ,25/11/2016,40.70,Purchase Card Statement Summary,261600 - Human Resources - Travel & Subsistence,
Solihull MBC,Resources,Central Services to the Public,Mr Memory,05/10/2016,21.75,IT Equipment & Software,169999 - Domestic Goods - Not Elsewhere Classified,
Solihull MBC,Adult Social Care,Central Services to the Public,National Pen Promotion ,25/11/2016,146.33,Purchase Card Statement Summary,341100 - Stationery - Sundries,
Solihull MBC,Adult Social Care,Adult Social Care,NCP Manchester Central G,26/10/2016,66.67,Officers Expenses,261600 - Human Resources - Travel & Subsistence,
Solihull MBC,Children's Services & Skills,Children & Education Services,NCP Manchester Central G ,25/11/2016,60.00,Purchase Card Statement Summary,261600 - Human Resources - Travel & Subsistence,
Solihull MBC,Adult Social Care,Adult Social Care,Next Retail Ltd ,25/11/2016,757.00,Purchase Card Statement Summary,141000 - Clothing - Children & Adults,
Solihull MBC,Managed Growth and Communities,Highways & Transport Services,No.111-Pudong Rd. South ,25/11/2016,62.32,Purchase Card Statement Summary,209999 - Financial Services - Not Elsewhere Classified,
Solihull MBC,Resources,Central Services to the Public,O2 UK CCA Payment ,25/11/2016,10.12,Purchase Card Statement Summary,271699 - Information Communications Technology - Telecommunications,
Solihull MBC,Adult Social Care,Adult Social Care,O'Neill's ,25/11/2016,14.29,Purchase Card Statement Summary,261600 - Human Resources - Travel & Subsistence,
Solihull MBC,Adult Social Care,Adult Social Care,Pablos ,25/11/2016,20.25,Purchase Card Statement Summary,261600 - Human Resources - Travel & Subsistence,
Solihull MBC,Managed Growth and Communities,Planning & Development Services,Paperchase ,25/11/2016,5.50,Purchase Card Statement Summary,161000 - Domestic Goods - Commercial,
Solihull MBC,Managed Growth and Communities,Planning & Development Services,Paperchase ,25/11/2016,17.50,Purchase Card Statement Summary,161000 - Domestic Goods - Commercial,
Solihull MBC,Managed Growth and Communities - HRA,Housing Revenue Account,Paperstone ,25/11/2016,33.93,General Debtors,341100 - Stationery - Sundries,
Solihull MBC,Managed Growth and Communities,Highways & Transport Services,Park Mobile ,25/11/2016,4.20,Purchase Card Statement Summary,261600 - Human Resources - Travel & Subsistence,
Solihull MBC,Children's Services & Skills,Children & Education Services,Partridge & Print ,25/11/2016,56.60,Purchase Card Statement Summary,171011 - Education - School Services,
Solihull MBC,Children's Services & Skills,Children & Education Services,Partridge & Print ,25/11/2016,198.00,Purchase Card Statement Summary,171011 - Education - School Services,
Solihull MBC,Adult Social Care,Adult Social Care,Patisserie Valerie ,25/11/2016,10.05,Purchase Card Statement Summary,261600 - Human Resources - Travel & Subsistence,
Solihull MBC,Children's Services & Skills,Children & Education Services,Pavilion Publishing &,18/10/2016,32.00,General Office Expenses,349999 - Stationery - Not Elsewhere Classified,
Solihull MBC,Public Health & Commissioning,Cultural & Related Services,Paypal *Bankruptbik,01/11/2016,24.14,Furniture & Equipment,331300 - Sports & Playground Equipment & Maintenance - Sports Equipment,
Solihull MBC,Resources,Central Services to the Public,Paypal *Godaddy.com ,25/11/2016,4.79,Purchase Card Statement Summary,279999 - Information Communications Technology - Not Elsewhere Classified,
Solihull MBC,Resources,Central Services to the Public,Paypal *Godaddy.com ,25/11/2016,58.79,Purchase Card Statement Summary,279999 - Information Communications Technology - Not Elsewhere Classified,
Solihull MBC,Managed Growth and Communities,Highways & Transport Services,Paypal *Helpinghand,26/10/2016,78.25,Materials,169999 - Domestic Goods - Not Elsewhere Classified,
Solihull MBC,Resources,Central Services to the Public,Paypal *Justop Ltd ,25/11/2016,5.95,Purchase Card Statement Summary,169999 - Domestic Goods - Not Elsewhere Classified,
Solihull MBC,Resources,Central Services to the Public,Paypal *Lampshoponl ,25/11/2016,36.60,Purchase Card Statement Summary,211210 - Furniture & Soft Furnishings - Soft Furnishings,
Solihull MBC,Managed Growth and Communities,Planning & Development Services,Paypal *Landscapein ,25/11/2016,70.00,Purchase Card Statement Summary,201710 - Financial Services - Grants - Charitable,
Solihull MBC,Resources,Central Services to the Public,Paypal *Microneurop ,25/11/2016,155.98,Purchase Card Statement Summary,271600 - Information Communication Technology - Software - Customised & Bespoke,
Solihull MBC,Resources,Central Services to the Public,Paypal *Olaxinvestm ,25/11/2016,2.97,Purchase Card Statement Summary,271699 - Information Communications Technology - Telecommunications,
Solihull MBC,Managed Growth and Communities,Planning & Development Services,Paypal *Rtpi ,25/11/2016,230.00,Purchase Card Statement Summary,201710 - Financial Services - Grants - Charitable,
Solihull MBC,Resources,Central Services to the Public,Paypal *Stresscheck ,25/11/2016,54.22,Purchase Card Statement Summary,279999 - Information Communications Technology - Not Elsewhere Classified,
Solihull MBC,Children's Services & Skills,Children & Education Services,Paypal *TriplepUKli ,25/11/2016,71.94,Purchase Card Statement Summary,171011 - Education - School Services,
Solihull MBC,Adult Social Care,Adult Social Care,Peking Restaurant ,25/11/2016,32.72,Purchase Card Statement Summary,261600 - Human Resources - Travel & Subsistence,
Solihull MBC,Managed Growth and Communities - HRA,Housing Revenue Account,Photobox Limited ,25/11/2016,5.46,General Debtors,349999 - Stationery - Not Elsewhere Classified,
Solihull MBC,Managed Growth and Communities,Highways & Transport Services,Po 1 Pinfold St ,25/11/2016,200.00,Purchase Card Statement Summary,209999 - Financial Services - Not Elsewhere Classified,
Solihull MBC,Resources,Children & Education Services,Post Office Counter ,25/11/2016,7.68,Purchase Card Statement Summary,301200 - Mail Services - Postage,
Solihull MBC,Adult Social Care,Adult Social Care,Post Office Shop ,25/11/2016,70.13,Purchase Card Statement Summary,301200 - Mail Services - Postage,
Solihull MBC,Managed Growth and Communities,Environmental and Regulatory Services,Poundland ,25/11/2016,10.00,Purchase Card Statement Summary,169999 - Domestic Goods - Not Elsewhere Classified,
Solihull MBC,Adult Social Care,Adult Social Care,Poundland Ltd 1174 ,25/11/2016,16.10,Purchase Card Statement Summary,169999 - Domestic Goods - Not Elsewhere Classified,
Solihull MBC,Public Health & Commissioning,Cultural & Related Services,Poundland Ltd 1713,12/10/2016,1.67,Furniture & Equipment,169999 - Domestic Goods - Not Elsewhere Classified,
Solihull MBC,Children's Services & Skills,Children & Education Services,Poundland Ltd 1713 ,25/11/2016,6.00,Purchase Card Statement Summary,169999 - Domestic Goods - Not Elsewhere Classified,
Solihull MBC,Managed Growth and Communities,Environmental and Regulatory Services,Poundland Ltd 1713 ,25/11/2016,8.00,Purchase Card Statement Summary,169999 - Domestic Goods - Not Elsewhere Classified,
Solihull MBC,Managed Growth and Communities,Environmental and Regulatory Services,Poundland Ltd 1713 ,25/11/2016,13.00,Purchase Card Statement Summary,169999 - Domestic Goods - Not Elsewhere Classified,
Solihull MBC,Adult Social Care,Adult Social Care,Poundworld Retail,03/10/2016,5.00,Catering Provisions,169999 - Domestic Goods - Not Elsewhere Classified,
Solihull MBC,Children's Services & Skills,Children & Education Services,Premier Inn44014350 ,25/11/2016,232.98,Purchase Card Statement Summary,261000 - Human Resources - Accommodation,
Solihull MBC,Children's Services & Skills,Children & Education Services,Premier Inn44020530 ,25/11/2016,175.98,Purchase Card Statement Summary,261000 - Human Resources - Accommodation,
Solihull MBC,Children's Services - DSG Central.,Children & Education Services,Premier Inn44028685,13/10/2016,46.24,Car Allowances: Officers,261000 - Human Resources - Accommodation,
Solihull MBC,Children's Services & Skills,Children & Education Services,Prestige Taxis Ltd ,25/11/2016,40.00,Purchase Card Statement Summary,361300 - Public Transport - Passenger Transport,
Solihull MBC,Children's Services & Skills,Children & Education Services,Prestige Taxis Ltd ,25/11/2016,40.00,Purchase Card Statement Summary,361300 - Public Transport - Passenger Transport,
Solihull MBC,Resources,Central Services to the Public,Quids In Bham Ltd,02/11/2016,3.84,General Office Expenses,169999 - Domestic Goods - Not Elsewhere Classified,
Solihull MBC,Children's Services & Skills,Children & Education Services,R T Enterprises Ltd ,25/11/2016,20.00,Purchase Card Statement Summary,361300 - Public Transport - Passenger Transport,
Solihull MBC,Adult Social Care,Cultural & Related Services,Realtime Dc Ltd ,25/11/2016,164.64,Purchase Card Statement Summary,111100 - Catering - Equipment & Utensils,
Solihull MBC,Adult Social Care,Adult Social Care,Redwings@Oxhill,21/10/2016,12.60,Clients Expenses,201710 - Financial Services - Grants - Charitable,
Solihull MBC,Adult Social Care,Adult Social Care,Redwings@Oxhill ,25/11/2016,10.20,Purchase Card Statement Summary,201710 - Financial Services - Grants - Charitable,
Solihull MBC,Managed Growth and Communities,Planning & Development Services,Riba Enterprises Ltd ,25/11/2016,43.99,Purchase Card Statement Summary,171114 - Education - Literature,
Solihull MBC,Children's Services & Skills,Children & Education Services,Ringgo ,25/11/2016,4.70,Purchase Card Statement Summary,261600 - Human Resources - Travel & Subsistence,
Solihull MBC,Adult Social Care,Cultural & Related Services,Robe UK Ltd,27/10/2016,34.86,Furniture & Equipment,169999 - Domestic Goods - Not Elsewhere Classified,
Solihull MBC,Resources,Other Housing Services,Royal Mail Charges,19/10/2016,2.00,General Office Expenses,301200 - Mail Services - Postage,
Solihull MBC,Adult Social Care,Corporate & Democratic Core,Sainsbury's ,25/11/2016,2.90,Purchase Card Statement Summary,111200 - Catering - Food & Beverages,
Solihull MBC,Managed Growth and Communities,Highways & Transport Services,Sainsbury's ,25/11/2016,25.00,Purchase Card Statement Summary,111200 - Catering - Food & Beverages,
Solihull MBC,Resources,Central Services to the Public,Sainsburys Petrol ,25/11/2016,18.30,Purchase Card Statement Summary,381100 - Vehicle Management - Fuel,
Solihull MBC,Managed Growth and Communities,Environmental and Regulatory Services,Sainsburys S Mkt ,25/11/2016,3.00,Purchase Card Statement Summary,111200 - Catering - Food & Beverages,
Solihull MBC,Managed Growth and Communities,Environmental and Regulatory Services,Sainsburys S Mkt ,25/11/2016,39.00,Purchase Card Statement Summary,111200 - Catering - Food & Beverages,
Solihull MBC,Adult Social Care,Adult Social Care,Sainsbury's S Mkt ,25/11/2016,2.85,Purchase Card Statement Summary,111200 - Catering - Food & Beverages,
Solihull MBC,Resources,Children & Education Services,Sainsbury's S Mkt ,25/11/2016,3.30,Purchase Card Statement Summary,111200 - Catering - Food & Beverages,
Solihull MBC,Adult Social Care,Adult Social Care,Sainsbury's S Mkt ,25/11/2016,3.50,Purchase Card Statement Summary,111200 - Catering - Food & Beverages,
Solihull MBC,Adult Social Care,Adult Social Care,Sainsbury's S Mkt ,25/11/2016,4.40,Purchase Card Statement Summary,111200 - Catering - Food & Beverages,
Solihull MBC,Adult Social Care,Adult Social Care,Sainsbury's S Mkt ,25/11/2016,5.10,Purchase Card Statement Summary,111200 - Catering - Food & Beverages,
Solihull MBC,Adult Social Care,Adult Social Care,Sainsbury's S Mkt ,25/11/2016,5.20,Purchase Card Statement Summary,111200 - Catering - Food & Beverages,
Solihull MBC,Adult Social Care,Adult Social Care,Sainsbury's S Mkt ,25/11/2016,10.35,Purchase Card Statement Summary,111200 - Catering - Food & Beverages,
Solihull MBC,Adult Social Care,Adult Social Care,Sainsbury's S Mkt ,25/11/2016,32.99,Purchase Card Statement Summary,111200 - Catering - Food & Beverages,
Solihull MBC,Adult Social Care,Adult Social Care,Sainsburys S Mkts ,25/11/2016,3.00,Purchase Card Statement Summary,111200 - Catering - Food & Beverages,
Solihull MBC,Resources,Children & Education Services,Sainsburys S Mkts ,25/11/2016,4.00,Purchase Card Statement Summary,111200 - Catering - Food & Beverages,
Solihull MBC,Adult Social Care,Adult Social Care,Sainsburys S Mkts ,25/11/2016,5.00,Purchase Card Statement Summary,111200 - Catering - Food & Beverages,
Solihull MBC,Managed Growth and Communities,Environmental and Regulatory Services,Sainsburys S Mkts ,25/11/2016,19.00,Purchase Card Statement Summary,111200 - Catering - Food & Beverages,
Solihull MBC,Adult Social Care,Adult Social Care,Sainsburys S Mkts ,25/11/2016,26.55,Purchase Card Statement Summary,111200 - Catering - Food & Beverages,
Solihull MBC,Adult Social Care,Adult Social Care,Sainsburys S/Mkt,02/11/2016,13.80,Catering Provisions,111200 - Catering - Food & Beverages,
Solihull MBC,Adult Social Care,Adult Social Care,Sainsburys S/Mkt,02/11/2016,23.30,Catering Provisions,111200 - Catering - Food & Beverages,
Solihull MBC,Resources,Other Housing Services,Sainsbury's S/Mkt,27/10/2016,2.50,General Office Expenses,111200 - Catering - Food & Beverages,
Solihull MBC,Adult Social Care,Adult Social Care,Sainsbury's S/Mkt,30/10/2016,3.35,Clients Expenses,111200 - Catering - Food & Beverages,
Solihull MBC,Adult Social Care,Adult Social Care,Sainsbury's S/Mkt,30/10/2016,3.70,Clients Expenses,111200 - Catering - Food & Beverages,
Solihull MBC,Adult Social Care,Adult Social Care,Sainsbury's S/Mkt,09/10/2016,4.05,Catering Provisions,111200 - Catering - Food & Beverages,
Solihull MBC,Children's Services & Skills,Children & Education Services,Sainsbury's S/Mkt,15/10/2016,20.00,General Office Expenses,111200 - Catering - Food & Beverages,
Solihull MBC,Adult Social Care,Adult Social Care,Sainsbury's S/Mkt,07/10/2016,20.25,Catering Provisions,111200 - Catering - Food & Beverages,
Solihull MBC,Adult Social Care,Adult Social Care,Sainsbury's S/Mkt,22/10/2016,21.30,Catering Provisions,111200 - Catering - Food & Beverages,
Solihull MBC,Adult Social Care,Adult Social Care,Sainsbury's S/Mkt,28/10/2016,23.60,Catering Provisions,111200 - Catering - Food & Beverages,
Solihull MBC,Resources,Central Services to the Public,Sainsburys S/Mkts,07/10/2016,2.00,General Office Expenses,111200 - Catering - Food & Beverages,
Solihull MBC,Resources,Children & Education Services,Sainsburys S/Mkts,03/10/2016,2.50,Catering Provisions,111200 - Catering - Food & Beverages,
Solihull MBC,Resources,Children & Education Services,Sainsburys S/Mkts,05/10/2016,3.00,Catering Provisions,111200 - Catering - Food & Beverages,
Solihull MBC,Resources,Children & Education Services,Sainsburys S/Mkts,02/11/2016,3.00,Catering Provisions,111200 - Catering - Food & Beverages,
Solihull MBC,Children's Services & Skills,Children & Education Services,Sainsburys S/Mkts,12/10/2016,3.00,General Office Expenses,111200 - Catering - Food & Beverages,
Solihull MBC,Resources,Children & Education Services,Sainsburys S/Mkts,02/11/2016,4.00,Catering Provisions,111200 - Catering - Food & Beverages,
Solihull MBC,Resources,Children & Education Services,Sainsburys S/Mkts,02/11/2016,4.00,Catering Provisions,111200 - Catering - Food & Beverages,
Solihull MBC,Resources,Other Housing Services,Sainsburys S/Mkts,05/10/2016,4.00,General Office Expenses,111200 - Catering - Food & Beverages,
Solihull MBC,Resources,Children & Education Services,Sainsburys S/Mkts,02/11/2016,4.50,Catering Provisions,111200 - Catering - Food & Beverages,
Solihull MBC,Resources,Children & Education Services,Sainsburys S/Mkts,03/10/2016,6.00,Catering Provisions,111200 - Catering - Food & Beverages,
Solihull MBC,Adult Social Care,Adult Social Care,Sainsburys S/Mkts,31/10/2016,7.10,Catering Provisions,111200 - Catering - Food & Beverages,
Solihull MBC,Resources,Central Services to the Public,Sainsburys S/Mkts,24/10/2016,8.00,Catering Provisions,111200 - Catering - Food & Beverages,
Solihull MBC,Resources,Children & Education Services,Sainsburys S/Mkts,10/10/2016,8.18,Catering Provisions,111200 - Catering - Food & Beverages,
Solihull MBC,Resources,Corporate & Democratic Core,Sainsburys S/Mkts,03/10/2016,8.50,General Office Expenses,111200 - Catering - Food & Beverages,
Solihull MBC,Resources,Children & Education Services,Sainsburys S/Mkts,02/11/2016,9.00,Catering Provisions,111200 - Catering - Food & Beverages,
Solihull MBC,Adult Social Care,Adult Social Care,Sainsburys S/Mkts,24/10/2016,11.00,Purchase Card Statement Summary,111200 - Catering - Food & Beverages,
Solihull MBC,Resources,Children & Education Services,Sainsburys S/Mkts,10/10/2016,11.50,Catering Provisions,111200 - Catering - Food & Beverages,
Solihull MBC,Adult Social Care,Adult Social Care,Sainsburys S/Mkts,25/10/2016,16.35,Catering Provisions,111200 - Catering - Food & Beverages,
Solihull MBC,Adult Social Care,Adult Social Care,Sainsburys S/Mkts,11/10/2016,23.87,Cleaning,111200 - Catering - Food & Beverages,
Solihull MBC,Adult Social Care,Adult Social Care,Sainsburys S/Mkts,07/10/2016,25.15,Catering Provisions,111200 - Catering - Food & Beverages,
Solihull MBC,Adult Social Care,Adult Social Care,Sainsburys S/Mkts,24/10/2016,50.27,Catering Provisions,111200 - Catering - Food & Beverages,
Solihull MBC,Adult Social Care,Adult Social Care,Sainsburys S/Mkts,11/10/2016,82.30,Catering Provisions,111200 - Catering - Food & Beverages,
Solihull MBC,Adult Social Care,Adult Social Care,Sainsburys S/Mkts,31/10/2016,84.02,Catering Provisions,111200 - Catering - Food & Beverages,
Solihull MBC,Adult Social Care,Adult Social Care,Saracens Head ,25/11/2016,37.08,Purchase Card Statement Summary,261600 - Human Resources - Travel & Subsistence,
Solihull MBC,Adult Social Care,Adult Social Care,Saracens Head ,25/11/2016,38.28,Purchase Card Statement Summary,261600 - Human Resources - Travel & Subsistence,
Solihull MBC,Adult Social Care,Adult Social Care,Saracens Head ,25/11/2016,44.07,Purchase Card Statement Summary,261600 - Human Resources - Travel & Subsistence,
Solihull MBC,Managed Growth and Communities,Highways & Transport Services,Screwfix Direct,24/10/2016,24.99,Clothing & Uniforms,102500 - Building Construction Materials - Timber,
Solihull MBC,Managed Growth and Communities - HRA,Housing Revenue Account,Screwfix Direct,11/10/2016,26.61,General Debtors,102500 - Building Construction Materials - Timber,
Solihull MBC,Managed Growth and Communities,Highways & Transport Services,Screwfix Direct ,25/11/2016,34.99,Purchase Card Statement Summary,102500 - Building Construction Materials - Timber,
Solihull MBC,Managed Growth and Communities,Highways & Transport Services,Screwfix Direct Lt,25/10/2016,51.29,Furniture & Equipment,102500 - Building Construction Materials - Timber,
Solihull MBC,Managed Growth and Communities,Highways & Transport Services,Screwfix Direct Lt,20/10/2016,177.98,Furniture & Equipment,102500 - Building Construction Materials - Timber,
Solihull MBC,Managed Growth and Communities,Highways & Transport Services,Screwfix Direct Lt ,25/11/2016,-3.99,Purchase Card Statement Summary,102500 - Building Construction Materials - Timber,
Solihull MBC,Managed Growth and Communities,Other Housing Services,Screwfix Direct Lt ,25/11/2016,19.99,Purchase Card Statement Summary,102500 - Building Construction Materials - Timber,
Solihull MBC,Adult Social Care,Adult Social Care,SCS 100136 ,25/11/2016,1937.00,Purchase Card Statement Summary,211100 - Furniture & Soft Furnishings - Domestic Furniture,
Solihull MBC,Adult Social Care,Adult Social Care,Seashells ,25/11/2016,13.56,Purchase Card Statement Summary,261600 - Human Resources - Travel & Subsistence,
Solihull MBC,Managed Growth and Communities,Highways & Transport Services,Shang Hai Wang Bao He ,25/11/2016,195.33,Purchase Card Statement Summary,261000 - Human Resources - Accommodation,
Solihull MBC,Managed Growth and Communities,Highways & Transport Services,Sheraton Hotel Changzhou ,25/11/2016,284.77,Purchase Card Statement Summary,261000 - Human Resources - Accommodation,
Solihull MBC,Adult Social Care,Adult Social Care,SMBC - Arts Cafe ,25/11/2016,7.40,Purchase Card Statement Summary,151900 - Consultancy - Management,
Solihull MBC,Adult Social Care,Adult Social Care,SMBC - Arts Cafe ,25/11/2016,8.05,Purchase Card Statement Summary,151900 - Consultancy - Management,
Solihull MBC,Managed Growth and Communities,Highways & Transport Services,Solihull Station T O ,25/11/2016,5.50,Purchase Card Statement Summary,261600 - Human Resources - Travel & Subsistence,
Solihull MBC,Managed Growth and Communities,Highways & Transport Services,Solihull Station T/O,17/10/2016,4.30,Furniture & Equipment,261600 - Human Resources - Travel & Subsistence,
Solihull MBC,Managed Growth and Communities,Highways & Transport Services,Solihull Station T/O,20/10/2016,5.50,Furniture & Equipment,261600 - Human Resources - Travel & Subsistence,
Solihull MBC,Adult Social Care,Cultural & Related Services,SP Services UK Ltd,31/10/2016,45.71,Furniture & Equipment,311600 - Healthcare - Services,
Solihull MBC,Children's Services & Skills,Children & Education Services,Sp� Sherwood Dia ,25/11/2016,63.54,Purchase Card Statement Summary,271430 - Information Communication Technology - Software - Commercial Off-The-Shelf,
Solihull MBC,Children's Services & Skills,Children & Education Services,Spar Smiths Wood,25/10/2016,4.43,Materials,111200 - Catering - Food & Beverages,
Solihull MBC,Adult Social Care,Adult Social Care,St Elmo ,25/11/2016,27.76,Purchase Card Statement Summary,291100 - Arts & Leisure Services - Museums & Arts,
Solihull MBC,Adult Social Care,Adult Social Care,Strawberry Field ,25/11/2016,36.92,Purchase Card Statement Summary,261600 - Human Resources - Travel & Subsistence,
Solihull MBC,Adult Social Care,Cultural & Related Services,Tesco Direct ,25/11/2016,154.41,Purchase Card Statement Summary,161000 - Domestic Goods - Commercial,
Solihull MBC,Resources,Children & Education Services,Tesco Store 2624,07/10/2016,7.68,Postage & Courier Services,111200 - Catering - Food & Beverages,
Solihull MBC,Adult Social Care,Adult Social Care,Tesco Store 2785,07/10/2016,49.63,Catering Provisions,111200 - Catering - Food & Beverages,
Solihull MBC,Adult Social Care,Adult Social Care,Tesco Store 3188,24/10/2016,1.58,Catering Provisions,111200 - Catering - Food & Beverages,
Solihull MBC,Adult Social Care,Adult Social Care,Tesco Store 3188,01/11/2016,2.60,Cleaning,111200 - Catering - Food & Beverages,
Solihull MBC,Adult Social Care,Adult Social Care,Tesco Store 3188,26/10/2016,3.54,Clients Expenses,111200 - Catering - Food & Beverages,
Solihull MBC,Adult Social Care,Adult Social Care,Tesco Store 3188,01/11/2016,5.39,Catering Provisions,111200 - Catering - Food & Beverages,
Solihull MBC,Adult Social Care,Adult Social Care,Tesco Store 3188,26/10/2016,5.69,Clients Expenses,111200 - Catering - Food & Beverages,
Solihull MBC,Adult Social Care,Adult Social Care,Tesco Store 3188,17/10/2016,6.04,Catering Provisions,111200 - Catering - Food & Beverages,
Solihull MBC,Adult Social Care,Adult Social Care,Tesco Store 3188,10/10/2016,6.89,Catering Provisions,111200 - Catering - Food & Beverages,
Solihull MBC,Adult Social Care,Adult Social Care,Tesco Store 3188,26/10/2016,7.85,Catering Provisions,111200 - Catering - Food & Beverages,
Solihull MBC,Adult Social Care,Adult Social Care,Tesco Store 3188,03/10/2016,8.07,Cleaning,111200 - Catering - Food & Beverages,
Solihull MBC,Adult Social Care,Adult Social Care,Tesco Store 3188,10/10/2016,8.90,Cleaning,111200 - Catering - Food & Beverages,
Solihull MBC,Adult Social Care,Adult Social Care,Tesco Store 3188,24/10/2016,9.57,Cleaning,111200 - Catering - Food & Beverages,
Solihull MBC,Adult Social Care,Adult Social Care,Tesco Store 3188,31/10/2016,10.41,Cleaning,111200 - Catering - Food & Beverages,
Solihull MBC,Adult Social Care,Adult Social Care,Tesco Store 3188,10/10/2016,11.58,Cleaning,111200 - Catering - Food & Beverages,
Solihull MBC,Adult Social Care,Adult Social Care,Tesco Store 3188,24/10/2016,13.05,Cleaning,111200 - Catering - Food & Beverages,
Solihull MBC,Adult Social Care,Adult Social Care,Tesco Store 3188,24/10/2016,13.34,Cleaning,111200 - Catering - Food & Beverages,
Solihull MBC,Adult Social Care,Adult Social Care,Tesco Store 3188,17/10/2016,15.95,Cleaning,111200 - Catering - Food & Beverages,
Solihull MBC,Adult Social Care,Adult Social Care,Tesco Store 3188,18/10/2016,16.60,Cleaning,111200 - Catering - Food & Beverages,
Solihull MBC,Adult Social Care,Adult Social Care,Tesco Store 3188,03/10/2016,17.20,Cleaning,111200 - Catering - Food & Beverages,
Solihull MBC,Adult Social Care,Adult Social Care,Tesco Store 3188,02/11/2016,17.50,Cleaning,111200 - Catering - Food & Beverages,
Solihull MBC,Adult Social Care,Adult Social Care,Tesco Store 3188,18/10/2016,19.20,Cleaning,111200 - Catering - Food & Beverages,
Solihull MBC,Adult Social Care,Adult Social Care,Tesco Store 3188,25/10/2016,20.24,Cleaning,111200 - Catering - Food & Beverages,
Solihull MBC,Adult Social Care,Adult Social Care,Tesco Store 3188,31/10/2016,22.52,Catering Provisions,111200 - Catering - Food & Beverages,
Solihull MBC,Adult Social Care,Adult Social Care,Tesco Store 3188,04/10/2016,23.74,Cleaning,111200 - Catering - Food & Beverages,
Solihull MBC,Adult Social Care,Adult Social Care,Tesco Store 3188,24/10/2016,24.50,Furniture & Equipment,111200 - Catering - Food & Beverages,
Solihull MBC,Adult Social Care,Adult Social Care,Tesco Store 3188,01/11/2016,24.58,Catering Provisions,111200 - Catering - Food & Beverages,
Solihull MBC,Adult Social Care,Adult Social Care,Tesco Store 3188,01/11/2016,28.70,Cleaning,111200 - Catering - Food & Beverages,
Solihull MBC,Adult Social Care,Adult Social Care,Tesco Store 3188,27/10/2016,29.17,Purchase Card Statement Summary,111200 - Catering - Food & Beverages,
Solihull MBC,Adult Social Care,Adult Social Care,Tesco Store 3188,27/10/2016,31.33,Cleaning,111200 - Catering - Food & Beverages,
Solihull MBC,Resources,Corporate & Democratic Core,Tesco Store 3188,25/10/2016,33.16,Reimbursements & Contributions,111200 - Catering - Food & Beverages,
Solihull MBC,Adult Social Care,Adult Social Care,Tesco Store 3188,02/11/2016,33.29,Cleaning,111200 - Catering - Food & Beverages,
Solihull MBC,Adult Social Care,Adult Social Care,Tesco Store 3188,02/11/2016,35.00,Furniture & Equipment,111200 - Catering - Food & Beverages,
Solihull MBC,Adult Social Care,Adult Social Care,Tesco Store 3188,20/10/2016,36.19,Cleaning,111200 - Catering - Food & Beverages,
Solihull MBC,Adult Social Care,Adult Social Care,Tesco Store 3188,24/10/2016,53.70,Catering Provisions,111200 - Catering - Food & Beverages,
Solihull MBC,Adult Social Care,Adult Social Care,Tesco Store 3188,03/10/2016,62.28,Catering Provisions,111200 - Catering - Food & Beverages,
Solihull MBC,Adult Social Care,Adult Social Care,Tesco Store 3188,10/10/2016,64.30,Catering Provisions,111200 - Catering - Food & Beverages,
Solihull MBC,Adult Social Care,Adult Social Care,Tesco Store 3188,18/10/2016,68.85,Catering Provisions,111200 - Catering - Food & Beverages,
Solihull MBC,Adult Social Care,Adult Social Care,Tesco Store 3188,27/10/2016,71.24,Purchase Card Statement Summary,111200 - Catering - Food & Beverages,
Solihull MBC,Adult Social Care,Adult Social Care,Tesco Store 3188,31/10/2016,73.15,Catering Provisions,111200 - Catering - Food & Beverages,
Solihull MBC,Adult Social Care,Adult Social Care,Tesco Store 3188,24/10/2016,73.56,Catering Provisions,111200 - Catering - Food & Beverages,
Solihull MBC,Adult Social Care,Adult Social Care,Tesco Store 3188,17/10/2016,78.56,Catering Provisions,111200 - Catering - Food & Beverages,
Solihull MBC,Adult Social Care,Adult Social Care,Tesco Store 3188,02/11/2016,80.24,Catering Provisions,111200 - Catering - Food & Beverages,
Solihull MBC,Adult Social Care,Adult Social Care,Tesco Store 3188,01/11/2016,90.46,Catering Provisions,111200 - Catering - Food & Beverages,
Solihull MBC,Adult Social Care,Adult Social Care,Tesco Store 3188,03/10/2016,93.91,Catering Provisions,111200 - Catering - Food & Beverages,
Solihull MBC,Adult Social Care,Adult Social Care,Tesco Store 3188,25/10/2016,94.17,Catering Provisions,111200 - Catering - Food & Beverages,
Solihull MBC,Adult Social Care,Adult Social Care,Tesco Store 3188,18/10/2016,95.75,Catering Provisions,111200 - Catering - Food & Beverages,
Solihull MBC,Adult Social Care,Adult Social Care,Tesco Store 3188,10/10/2016,102.09,Catering Provisions,111200 - Catering - Food & Beverages,
Solihull MBC,Adult Social Care,Adult Social Care,Tesco Store 3188,02/11/2016,118.56,Catering Provisions,111200 - Catering - Food & Beverages,
Solihull MBC,Adult Social Care,Adult Social Care,Tesco Store 3188,14/10/2016,119.40,Catering Provisions,111200 - Catering - Food & Beverages,
Solihull MBC,Adult Social Care,Adult Social Care,Tesco Store 3188,04/10/2016,121.53,Catering Provisions,111200 - Catering - Food & Beverages,
Solihull MBC,Adult Social Care,Adult Social Care,Tesco Store 3188,20/10/2016,146.90,Catering Provisions,111200 - Catering - Food & Beverages,
Solihull MBC,Adult Social Care,Adult Social Care,Tesco Store 3188 ,25/11/2016,2.25,Purchase Card Statement Summary,111200 - Catering - Food & Beverages,
Solihull MBC,Adult Social Care,Adult Social Care,Tesco Store 3188 ,25/11/2016,2.95,Purchase Card Statement Summary,111200 - Catering - Food & Beverages,
Solihull MBC,Adult Social Care,Adult Social Care,Tesco Store 3188 ,25/11/2016,3.00,Purchase Card Statement Summary,111200 - Catering - Food & Beverages,
Solihull MBC,Adult Social Care,Adult Social Care,Tesco Store 3188 ,25/11/2016,6.05,Purchase Card Statement Summary,111200 - Catering - Food & Beverages,
Solihull MBC,Adult Social Care,Adult Social Care,Tesco Store 3188 ,25/11/2016,11.30,Purchase Card Statement Summary,111200 - Catering - Food & Beverages,
Solihull MBC,Adult Social Care,Adult Social Care,Tesco Store 3188 ,25/11/2016,12.63,Purchase Card Statement Summary,111200 - Catering - Food & Beverages,
Solihull MBC,Adult Social Care,Adult Social Care,Tesco Store 3188 ,25/11/2016,13.16,Purchase Card Statement Summary,111200 - Catering - Food & Beverages,
Solihull MBC,Adult Social Care,Adult Social Care,Tesco Store 3188 ,25/11/2016,17.55,Purchase Card Statement Summary,111200 - Catering - Food & Beverages,
Solihull MBC,Adult Social Care,Adult Social Care,Tesco Store 3188 ,25/11/2016,17.90,Purchase Card Statement Summary,111200 - Catering - Food & Beverages,
Solihull MBC,Adult Social Care,Adult Social Care,Tesco Store 3188 ,25/11/2016,18.10,Purchase Card Statement Summary,111200 - Catering - Food & Beverages,
Solihull MBC,Adult Social Care,Adult Social Care,Tesco Store 3188 ,25/11/2016,18.88,Purchase Card Statement Summary,111200 - Catering - Food & Beverages,
Solihull MBC,Adult Social Care,Adult Social Care,Tesco Store 3188 ,25/11/2016,19.50,Purchase Card Statement Summary,111200 - Catering - Food & Beverages,
Solihull MBC,Adult Social Care,Adult Social Care,Tesco Store 3188 ,25/11/2016,20.40,Purchase Card Statement Summary,111200 - Catering - Food & Beverages,
Solihull MBC,Adult Social Care,Adult Social Care,Tesco Store 3188 ,25/11/2016,20.90,Purchase Card Statement Summary,111200 - Catering - Food & Beverages,
Solihull MBC,Adult Social Care,Adult Social Care,Tesco Store 3188 ,25/11/2016,21.80,Purchase Card Statement Summary,111200 - Catering - Food & Beverages,
Solihull MBC,Adult Social Care,Adult Social Care,Tesco Store 3188 ,25/11/2016,21.90,Purchase Card Statement Summary,111200 - Catering - Food & Beverages,
Solihull MBC,Adult Social Care,Adult Social Care,Tesco Store 3188 ,25/11/2016,23.50,Purchase Card Statement Summary,111200 - Catering - Food & Beverages,
Solihull MBC,Adult Social Care,Adult Social Care,Tesco Store 3188 ,25/11/2016,27.62,Purchase Card Statement Summary,111200 - Catering - Food & Beverages,
Solihull MBC,Adult Social Care,Adult Social Care,Tesco Store 3188 ,25/11/2016,31.11,Purchase Card Statement Summary,111200 - Catering - Food & Beverages,
Solihull MBC,Adult Social Care,Adult Social Care,Tesco Store 3188 ,25/11/2016,32.75,Purchase Card Statement Summary,111200 - Catering - Food & Beverages,
Solihull MBC,Adult Social Care,Adult Social Care,Tesco Store 3188 ,25/11/2016,46.89,Purchase Card Statement Summary,111200 - Catering - Food & Beverages,
Solihull MBC,Adult Social Care,Adult Social Care,Tesco Store 3188 ,25/11/2016,62.62,Purchase Card Statement Summary,111200 - Catering - Food & Beverages,
Solihull MBC,Adult Social Care,Adult Social Care,Tesco Store 3188 ,25/11/2016,76.21,Purchase Card Statement Summary,111200 - Catering - Food & Beverages,
Solihull MBC,Adult Social Care,Adult Social Care,Tesco Store 3188 ,25/11/2016,79.24,Purchase Card Statement Summary,111200 - Catering - Food & Beverages,
Solihull MBC,Adult Social Care,Adult Social Care,Tesco Store 3188 ,25/11/2016,80.81,Purchase Card Statement Summary,111200 - Catering - Food & Beverages,
Solihull MBC,Adult Social Care,Adult Social Care,Tesco Store 3188 ,25/11/2016,81.45,Purchase Card Statement Summary,111200 - Catering - Food & Beverages,
Solihull MBC,Adult Social Care,Adult Social Care,Tesco Store 3188 ,25/11/2016,94.86,Purchase Card Statement Summary,111200 - Catering - Food & Beverages,
Solihull MBC,Adult Social Care,Adult Social Care,Tesco Store 3188 ,25/11/2016,94.98,Purchase Card Statement Summary,111200 - Catering - Food & Beverages,
Solihull MBC,Adult Social Care,Adult Social Care,Tesco Store 3188 ,25/11/2016,102.42,Purchase Card Statement Summary,111200 - Catering - Food & Beverages,
Solihull MBC,Adult Social Care,Adult Social Care,Tesco Store 3188 ,25/11/2016,103.51,Purchase Card Statement Summary,111200 - Catering - Food & Beverages,
Solihull MBC,Adult Social Care,Adult Social Care,Tesco Store 3188 ,25/11/2016,106.57,Purchase Card Statement Summary,111200 - Catering - Food & Beverages,
Solihull MBC,Adult Social Care,Adult Social Care,Tesco Store 3188 ,25/11/2016,118.92,Purchase Card Statement Summary,111200 - Catering - Food & Beverages,
Solihull MBC,Adult Social Care,Adult Social Care,Tesco Store 3188 ,25/11/2016,120.78,Purchase Card Statement Summary,111200 - Catering - Food & Beverages,
Solihull MBC,Adult Social Care,Adult Social Care,Tesco Store 3188 ,25/11/2016,135.28,Purchase Card Statement Summary,111200 - Catering - Food & Beverages,
Solihull MBC,Adult Social Care,Adult Social Care,Tesco Store 3188 ,25/11/2016,139.31,Purchase Card Statement Summary,111200 - Catering - Food & Beverages,
Solihull MBC,Adult Social Care,Adult Social Care,Tesco Stores 2219,07/10/2016,2.50,Catering Provisions,111200 - Catering - Food & Beverages,
Solihull MBC,Adult Social Care,Adult Social Care,Tesco Stores 2219,01/11/2016,2.75,Catering Provisions,111200 - Catering - Food & Beverages,
Solihull MBC,Resources,Central Services to the Public,Tesco Stores 2219 ,25/11/2016,6.63,Purchase Card Statement Summary,111200 - Catering - Food & Beverages,
Solihull MBC,Resources,Central Services to the Public,Tesco Stores 2219 ,25/11/2016,6.81,Purchase Card Statement Summary,111200 - Catering - Food & Beverages,
Solihull MBC,Resources,Central Services to the Public,Tesco Stores 2219 ,25/11/2016,7.76,Purchase Card Statement Summary,111200 - Catering - Food & Beverages,
Solihull MBC,Adult Social Care,Adult Social Care,Tesco Stores 5114 ,25/11/2016,33.40,Purchase Card Statement Summary,111200 - Catering - Food & Beverages,
Solihull MBC,Adult Social Care,Adult Social Care,Tesco-Stores 3188,28/10/2016,2.00,Catering Provisions,111200 - Catering - Food & Beverages,
Solihull MBC,Adult Social Care,Adult Social Care,Tesco-Stores 3188,01/11/2016,12.92,Cleaning,111200 - Catering - Food & Beverages,
Solihull MBC,Adult Social Care,Adult Social Care,Tesco-Stores 3188,08/10/2016,13.52,Catering Provisions,111200 - Catering - Food & Beverages,
Solihull MBC,Adult Social Care,Adult Social Care,Tesco-Stores 3188 ,25/11/2016,4.20,Purchase Card Statement Summary,111200 - Catering - Food & Beverages,
Solihull MBC,Adult Social Care,Adult Social Care,Tesco-Stores 3188 ,25/11/2016,7.14,Purchase Card Statement Summary,111200 - Catering - Food & Beverages,
Solihull MBC,Managed Growth and Communities,Other Housing Services,Tesco-Stores 3188 ,25/11/2016,9.50,Purchase Card Statement Summary,111200 - Catering - Food & Beverages,
Solihull MBC,Adult Social Care,Adult Social Care,Tesco-Stores 3188 ,25/11/2016,11.32,Purchase Card Statement Summary,111200 - Catering - Food & Beverages,
Solihull MBC,Adult Social Care,Adult Social Care,Tesco-Stores 3188 ,25/11/2016,13.59,Purchase Card Statement Summary,111200 - Catering - Food & Beverages,
Solihull MBC,Adult Social Care,Adult Social Care,Tesco-Stores 6463 ,25/11/2016,41.37,Purchase Card Statement Summary,111200 - Catering - Food & Beverages,
Solihull MBC,Adult Social Care,Adult Social Care,The Aquarium ,25/11/2016,23.76,Purchase Card Statement Summary,291100 - Arts & Leisure Services - Museums & Arts,
Solihull MBC,Children's Services & Skills,Children & Education Services,The Birmingham Hotel ,25/11/2016,-200.00,Purchase Card Statement Summary,261000 - Human Resources - Accommodation,
Solihull MBC,Children's Services & Skills,Children & Education Services,The Birmingham Hotel ,25/11/2016,200.00,Purchase Card Statement Summary,261000 - Human Resources - Accommodation,
Solihull MBC,Resources,Central Services to the Public,The Chiltern Rlywy,28/10/2016,3.50,Purchase Card Statement Summary,261600 - Human Resources - Travel & Subsistence,
Solihull MBC,Resources,Central Services to the Public,The Chiltern Rlywy,06/10/2016,4.30,Purchase Card Statement Summary,261600 - Human Resources - Travel & Subsistence,
Solihull MBC,Resources,Central Services to the Public,The Chiltern Rlywy,03/10/2016,4.30,Purchase Card Statement Summary,261600 - Human Resources - Travel & Subsistence,
Solihull MBC,Resources,Central Services to the Public,The Chiltern Rlywy,02/11/2016,4.40,Purchase Card Statement Summary,261600 - Human Resources - Travel & Subsistence,
Solihull MBC,Resources,Central Services to the Public,The Chiltern Rlywy,18/10/2016,5.50,Purchase Card Statement Summary,261600 - Human Resources - Travel & Subsistence,
Solihull MBC,Resources,Central Services to the Public,The Chiltern Rlywy,02/11/2016,180.00,Purchase Card Statement Summary,261600 - Human Resources - Travel & Subsistence,
Solihull MBC,Managed Growth and Communities,Environmental and Regulatory Services,The Costume Department ,25/11/2016,150.00,Purchase Card Statement Summary,149999 - Clothing - Not Elsewhere Classified,
Solihull MBC,Adult Social Care,Other Housing Services,The Pet Centre Shirley L ,25/11/2016,23.99,Purchase Card Statement Summary,169999 - Domestic Goods - Not Elsewhere Classified,
Solihull MBC,Children's Services & Skills,Children & Education Services,The Post Office,12/10/2016,64.00,Materials,301200 - Mail Services - Postage,
Solihull MBC,Children's Services & Skills,Children & Education Services,The Post Office ,25/11/2016,82.25,Purchase Card Statement Summary,301200 - Mail Services - Postage,
Solihull MBC,Children's Services & Skills,Children & Education Services,The Post Office ,25/11/2016,94.72,Purchase Card Statement Summary,301200 - Mail Services - Postage,
Solihull MBC,Children's Services - DSG Central.,Children & Education Services,The Post Office ,25/11/2016,96,Purchase Card Statement Summary,301200 - Mail Services - Postage,
Solihull MBC,Adult Social Care,Adult Social Care,The Range ,25/11/2016,170.22,Purchase Card Statement Summary,169999 - Domestic Goods - Not Elsewhere Classified,
Solihull MBC,Public Health & Commissioning,Cultural & Related Services,The Works,12/10/2016,7.54,Furniture & Equipment,169999 - Domestic Goods - Not Elsewhere Classified,
Solihull MBC,Resources,Central Services to the Public,The Yorkshire Hotel ,25/11/2016,45,Purchase Card Statement Summary,261000 - Human Resources - Accommodation,
Solihull MBC,Managed Growth and Communities,Cultural & Related Services,Thrifty Car And Van Re ,25/11/2016,42,Purchase Card Statement Summary,381210 - Vehicle Management - Hire,
Solihull MBC,Adult Social Care,Cultural & Related Services,Ticketsolve Limited-GB,31/10/2016,38.00,Other Fees,271200 - Information Communications Technology - Hardware,
Solihull MBC,Adult Social Care,Cultural & Related Services,Times Newspapers Ltd ,25/11/2016,30.33,Purchase Card Statement Summary,349999 - Stationery - Not Elsewhere Classified,
Solihull MBC,Resources,Corporate & Democratic Core,Timpson Ltd ,25/11/2016,12.95,Purchase Card Statement Summary,149999 - Clothing - Not Elsewhere Classified,
Solihull MBC,Adult Social Care,Adult Social Care,Toby Carvery ,25/11/2016,20.37,Purchase Card Statement Summary,261600 - Human Resources - Travel & Subsistence,
Solihull MBC,Managed Growth and Communities,Cultural & Related Services,Touchwood Solihull ,25/11/2016,2.3,Purchase Card Statement Summary,261600 - Human Resources - Travel & Subsistence,
Solihull MBC,Managed Growth and Communities,Cultural & Related Services,Touchwood Solihull ,25/11/2016,2.3,Purchase Card Statement Summary,261600 - Human Resources - Travel & Subsistence,
Solihull MBC,Managed Growth and Communities,Cultural & Related Services,Touchwood Solihull ,25/11/2016,3.1,Purchase Card Statement Summary,261600 - Human Resources - Travel & Subsistence,
Solihull MBC,Children's Services & Skills,Children & Education Services,Trainline ,25/11/2016,-47.1,Purchase Card Statement Summary,261600 - Human Resources - Travel & Subsistence,
Solihull MBC,Children's Services & Skills,Children & Education Services,Trainline ,25/11/2016,5.35,Purchase Card Statement Summary,261600 - Human Resources - Travel & Subsistence,
Solihull MBC,Managed Growth and Communities - HRA,Housing Revenue Account,Trainline ,25/11/2016,156.57,General Debtors,261600 - Human Resources - Travel & Subsistence,
Solihull MBC,Resources,Central Services to the Public,Trainline.com Ltd,31/10/2016,19.80,General Office Expenses,261600 - Human Resources - Travel & Subsistence,
Solihull MBC,Children's Services & Skills,Children & Education Services,Trainline.com Ltd,07/10/2016,44.37,Car Allowances: Officers,261600 - Human Resources - Travel & Subsistence,
Solihull MBC,Resources,Central Services to the Public,Trainline.com Ltd,28/10/2016,57.70,General Office Expenses,261600 - Human Resources - Travel & Subsistence,
Solihull MBC,Children's Services & Skills,Children & Education Services,Trainline.com Ltd,10/10/2016,57.83,Car Allowances: Officers,261600 - Human Resources - Travel & Subsistence,
Solihull MBC,Children's Services & Skills,Children & Education Services,Trainline.com Ltd,06/10/2016,174.93,Car Allowances: Officers,261600 - Human Resources - Travel & Subsistence,
Solihull MBC,Resources,Central Services to the Public,Trainline.com Ltd,31/10/2016,185.74,Training,261600 - Human Resources - Travel & Subsistence,
Solihull MBC,Children's Services & Skills,Children & Education Services,Trainline.com Ltd ,25/11/2016,50.69,Purchase Card Statement Summary,261600 - Human Resources - Travel & Subsistence,
Solihull MBC,Children's Services & Skills,Children & Education Services,Trainline.com Ltd ,25/11/2016,74.3,Purchase Card Statement Summary,261600 - Human Resources - Travel & Subsistence,
Solihull MBC,Managed Growth and Communities - HRA,Housing Revenue Account,Trainline.com Ltd ,25/11/2016,99.35,General Debtors,261600 - Human Resources - Travel & Subsistence,
Solihull MBC,Children's Services & Skills,Children & Education Services,Trainline.com Ltd ,25/11/2016,103.12,Purchase Card Statement Summary,261600 - Human Resources - Travel & Subsistence,
Solihull MBC,Children's Services & Skills,Children & Education Services,Trainline.com Ltd ,25/11/2016,156.98,Purchase Card Statement Summary,261600 - Human Resources - Travel & Subsistence,
Solihull MBC,Children's Services & Skills,Children & Education Services,Trainline.com Ltd ,25/11/2016,166.77,Purchase Card Statement Summary,261600 - Human Resources - Travel & Subsistence,
Solihull MBC,Managed Growth and Communities - HRA,Housing Revenue Account,Trainline.com Ltd ,25/11/2016,191.66,General Debtors,261600 - Human Resources - Travel & Subsistence,
Solihull MBC,Adult Social Care,Adult Social Care,Travel Insurance ,25/11/2016,31.53,Purchase Card Statement Summary,201800 - Financial Services - Insurance,
Solihull MBC,Adult Social Care,Adult Social Care,Trolees Discount Store ,25/11/2016,12.74,Purchase Card Statement Summary,111200 - Catering - Food & Beverages,
Solihull MBC,Adult Social Care,Adult Social Care,Trolees Discount Store ,25/11/2016,26.05,Purchase Card Statement Summary,111200 - Catering - Food & Beverages,
Solihull MBC,Adult Social Care,Adult Social Care,Tu Nido ,25/11/2016,138.81,Purchase Card Statement Summary,381210 - Vehicle Management - Hire,
Solihull MBC,Children's Services & Skills,Children & Education Services,Tvlicensing.co.uk ,25/11/2016,145.5,Purchase Card Statement Summary,151900 - Consultancy - Management,
Solihull MBC,Children's Services & Skills,Children & Education Services,Tvlicensing.co.uk ,25/11/2016,145.5,Purchase Card Statement Summary,151900 - Consultancy - Management,
Solihull MBC,Adult Social Care,Cultural & Related Services,VDC Trading Ltd,10/10/2016,187.60,Furniture & Equipment,101100 - Building Construction Materials - Electrical,
Solihull MBC,Resources,Other Housing Services,Village Hotel Solihull,27/10/2016,249.58,General Office Expenses,261000 - Human Resources - Accommodation,
Solihull MBC,Adult Social Care,Central Services to the Public,Vistapr*Vistaprint.UK ,25/11/2016,36.89,Purchase Card Statement Summary,349999 - Stationery - Not Elsewhere Classified,
Solihull MBC,Adult Social Care,Adult Social Care,W M Morrison ,25/11/2016,3,Purchase Card Statement Summary,111200 - Catering - Food & Beverages,
Solihull MBC,Adult Social Care,Adult Social Care,W M Morrison ,25/11/2016,10.92,Purchase Card Statement Summary,111200 - Catering - Food & Beverages,
Solihull MBC,Adult Social Care,Other Housing Services,W M Morrison ,25/11/2016,10.95,Purchase Card Statement Summary,111200 - Catering - Food & Beverages,
Solihull MBC,Managed Growth and Communities,Environmental and Regulatory Services,W M Morrisons,18/10/2016,4.05,Materials,111200 - Catering - Food & Beverages,
Solihull MBC,Adult Social Care,Adult Social Care,W M Morrisons,06/10/2016,7.33,Catering Provisions,111200 - Catering - Food & Beverages,
Solihull MBC,Adult Social Care,Adult Social Care,W M Morrisons,29/10/2016,13.35,Catering Provisions,111200 - Catering - Food & Beverages,
Solihull MBC,Adult Social Care,Adult Social Care,W M Morrisons,19/10/2016,14.38,Catering Provisions,111200 - Catering - Food & Beverages,
Solihull MBC,Children's Services & Skills,Children & Education Services,W M Morrisons,06/10/2016,20.00,General Office Expenses,111200 - Catering - Food & Beverages,
Solihull MBC,Children's Services & Skills,Children & Education Services,W M Morrisons,04/10/2016,36.64,Catering Provisions,111200 - Catering - Food & Beverages,
Solihull MBC,Managed Growth and Communities - HRA,Housing Revenue Account,W M Morrisons ,25/11/2016,2.8,General Debtors,111200 - Catering - Food & Beverages,
Solihull MBC,Adult Social Care,Adult Social Care,W M Morrisons ,25/11/2016,13.16,Purchase Card Statement Summary,111200 - Catering - Food & Beverages,
Solihull MBC,Resources,Children & Education Services,W M Morrisons ,25/11/2016,14,Purchase Card Statement Summary,111200 - Catering - Food & Beverages,
Solihull MBC,Managed Growth and Communities,Other Housing Services,W M Morrisons ,25/11/2016,15,Purchase Card Statement Summary,111200 - Catering - Food & Beverages,
Solihull MBC,Managed Growth and Communities - HRA,Housing Revenue Account,W M Morrisons ,25/11/2016,34.54,General Debtors,111200 - Catering - Food & Beverages,
Solihull MBC,Managed Growth and Communities - HRA,Housing Revenue Account,W M Morrisons ,25/11/2016,44.1,General Debtors,111200 - Catering - Food & Beverages,
Solihull MBC,Adult Social Care,Adult Social Care,W M Morrisons.com,16/10/2016,49.57,Catering Provisions,111200 - Catering - Food & Beverages,
Solihull MBC,Adult Social Care,Adult Social Care,W M Morrisons.com,30/10/2016,87.19,Catering Provisions,111200 - Catering - Food & Beverages,
Solihull MBC,Resources,Corporate & Democratic Core,Waitrose 642,24/10/2016,19.37,Materials,111200 - Catering - Food & Beverages,
Solihull MBC,Adult Social Care,Cultural & Related Services,Waitrose 642 ,25/11/2016,4.25,Purchase Card Statement Summary,111200 - Catering - Food & Beverages,
Solihull MBC,Managed Growth and Communities,Other Housing Services,West Coast Trains,14/10/2016,3.80,Officers Transport Costs,261600 - Human Resources - Travel & Subsistence,
Solihull MBC,Managed Growth and Communities,Other Housing Services,West Coast Trains,20/10/2016,3.80,Officers Transport Costs,261600 - Human Resources - Travel & Subsistence,
Solihull MBC,Resources,Central Services to the Public,West Coast Trains,20/10/2016,37.40,Purchase Card Statement Summary,261600 - Human Resources - Travel & Subsistence,
Solihull MBC,Adult Social Care,Adult Social Care,West Midlands Safari Park ,25/11/2016,18,Purchase Card Statement Summary,291100 - Arts & Leisure Services - Museums & Arts,
Solihull MBC,Adult Social Care,Adult Social Care,West Midlands Safari Park ,25/11/2016,18.7,Purchase Card Statement Summary,291100 - Arts & Leisure Services - Museums & Arts,
Solihull MBC,Adult Social Care,Adult Social Care,West Midlands Safari Park ,25/11/2016,19.2,Purchase Card Statement Summary,291100 - Arts & Leisure Services - Museums & Arts,
Solihull MBC,Adult Social Care,Adult Social Care,West Midlands Safari Park ,25/11/2016,27.2,Purchase Card Statement Summary,291100 - Arts & Leisure Services - Museums & Arts,
Solihull MBC,Resources,Central Services to the Public,West Midlands Trvl,07/10/2016,60.50,Car Allowances: Officers,361300 - Public Transport - Passenger Transport,
Solihull MBC,Resources,Central Services to the Public,West Midlands Trvl,04/10/2016,60.50,Car Allowances: Officers,361300 - Public Transport - Passenger Transport,
Solihull MBC,Managed Growth and Communities,Highways & Transport Services,West Midlands Trvl,18/10/2016,63.00,Clients Transport Costs,361300 - Public Transport - Passenger Transport,
Solihull MBC,Resources,Other Housing Services,West Midlands Trvl,07/10/2016,84.00,Clients Expenses,361300 - Public Transport - Passenger Transport,
Solihull MBC,Managed Growth and Communities,Highways & Transport Services,West Midlands Trvl,01/11/2016,210.00,Clients Transport Costs,361300 - Public Transport - Passenger Transport,
Solihull MBC,Children's Services & Skills,Children & Education Services,West Midlands Trvl ,25/11/2016,60.5,Purchase Card Statement Summary,361300 - Public Transport - Passenger Transport,
Solihull MBC,Adult Social Care,Adult Social Care,WH Smith,28/10/2016,14.99,Catering Provisions,349999 - Stationery - Not Elsewhere Classified,
Solihull MBC,Managed Growth and Communities,Highways & Transport Services,Why Sports Media G ,25/11/2016,270,Purchase Card Statement Summary,151000 - Consultancy - Business,
Solihull MBC,Managed Growth and Communities,Planning & Development Services,Widney Manor Sst,31/10/2016,3.70,Officers Expenses,261600 - Human Resources - Travel & Subsistence,
Solihull MBC,Adult Social Care,Adult Social Care,Wilko Retail Limit,05/10/2016,92.96,Furniture & Equipment,169999 - Domestic Goods - Not Elsewhere Classified,
Solihull MBC,Children's Services & Skills,Children & Education Services,Wilko Retail Limit ,25/11/2016,5,Purchase Card Statement Summary,169999 - Domestic Goods - Not Elsewhere Classified,
Solihull MBC,Adult Social Care,Adult Social Care,Wilko Retail Limit ,25/11/2016,6.5,Purchase Card Statement Summary,169999 - Domestic Goods - Not Elsewhere Classified,
Solihull MBC,Adult Social Care,Adult Social Care,Wilko Retail Limit ,25/11/2016,8.05,Purchase Card Statement Summary,169999 - Domestic Goods - Not Elsewhere Classified,
Solihull MBC,Adult Social Care,Adult Social Care,Wilko Retail Limit ,25/11/2016,12.5,Purchase Card Statement Summary,169999 - Domestic Goods - Not Elsewhere Classified,
Solihull MBC,Managed Growth and Communities,Environmental and Regulatory Services,Wilko Retail Limit ,25/11/2016,17.95,Purchase Card Statement Summary,169999 - Domestic Goods - Not Elsewhere Classified,
Solihull MBC,Adult Social Care,Adult Social Care,Wilko The Fort 424 ,25/11/2016,3,Purchase Card Statement Summary,169999 - Domestic Goods - Not Elsewhere Classified,
Solihull MBC,Resources,Children & Education Services,Wm Morrison 069 ,25/11/2016,4,Purchase Card Statement Summary,111200 - Catering - Food & Beverages,
Solihull MBC,Adult Social Care,Adult Social Care,Wm Morrison Food.com ,25/11/2016,58.51,Purchase Card Statement Summary,111200 - Catering - Food & Beverages,
Solihull MBC,Adult Social Care,Adult Social Care,Wm Morrison Food.com ,25/11/2016,67.3,Purchase Card Statement Summary,111200 - Catering - Food & Beverages,
Solihull MBC,Adult Social Care,Adult Social Care,Wm Morrison Food.com ,25/11/2016,202.17,Purchase Card Statement Summary,111200 - Catering - Food & Beverages,
Solihull MBC,Resources,Children & Education Services,Wm Morrisons ,25/11/2016,3,Purchase Card Statement Summary,111200 - Catering - Food & Beverages,
Solihull MBC,Resources,Children & Education Services,Wm Morrisons ,25/11/2016,3,Purchase Card Statement Summary,111200 - Catering - Food & Beverages,
Solihull MBC,Resources,Children & Education Services,Wm Morrisons ,25/11/2016,6,Purchase Card Statement Summary,111200 - Catering - Food & Beverages,
Solihull MBC,Resources,Children & Education Services,Wm Morrisons ,25/11/2016,9.02,Purchase Card Statement Summary,111200 - Catering - Food & Beverages,
Solihull MBC,Resources,Corporate & Democratic Core,WP-Hemming Group L,24/10/2016,42.00,General Office Expenses,151000 - Consultancy - Business,
Solihull MBC,Adult Social Care,Cultural & Related Services,www.7Dayshop.com,31/10/2016,64.15,Furniture & Equipment,169999 - Domestic Goods - Not Elsewhere Classified,
Solihull MBC,Resources,Central Services to the Public,www.Accounts@Iia.org.u ,25/11/2016,270,Purchase Card Statement Summary,201000 - Financial Services - Accountancy,
Solihull MBC,Public Health & Commissioning,Central Services to the Public,www.Adass.org.uk,03/10/2016,130.00,Training,201710 - Financial Services - Grants - Charitable,
Solihull MBC,Resources,Central Services to the Public,www.Cartridgeink.co.uk ,25/11/2016,54.93,Purchase Card Statement Summary,341100 - Stationery - Sundries,
Solihull MBC,Children's Services & Skills,Children & Education Services,www.Ico.gov.uk,01/11/2016,35.00,Grant & Subscription (SCITT),209999 - Financial Services - Not Elsewhere Classified,
Solihull MBC,Resources,Central Services to the Public,www.Ico.gov.uk,04/10/2016,500.00,Grant & Subscription (SCITT),209999 - Financial Services - Not Elsewhere Classified,
Solihull MBC,Resources,Central Services to the Public,www.Ico.gov.uk ,25/11/2016,35,Purchase Card Statement Summary,209999 - Financial Services - Not Elsewhere Classified,
Solihull MBC,Adult Social Care,Adult Social Care,www.Just Eat.co.uk ,25/11/2016,28.4,Purchase Card Statement Summary,261600 - Human Resources - Travel & Subsistence,
Solihull MBC,Managed Growth and Communities - HRA,Housing Revenue Account,www.LighthouseUK.com ,25/11/2016,177.6,General Debtors,349999 - Stationery - Not Elsewhere Classified,
Solihull MBC,Managed Growth and Communities - HRA,Housing Revenue Account,www.Lockerkeys.biz ,25/11/2016,4.68,General Debtors,151000 - Consultancy - Business,
Solihull MBC,Managed Growth and Communities - HRA,Housing Revenue Account,www.Lockerkeys.biz ,25/11/2016,8.22,General Debtors,151000 - Consultancy - Business,
Solihull MBC,Adult Social Care,Adult Social Care,www.Looklocal.com ,25/11/2016,201,Purchase Card Statement Summary,191000 - Facilities & Management Services - Advertising,
Solihull MBC,Adult Social Care,Adult Social Care,www.Looklocal.com ,25/11/2016,286,Purchase Card Statement Summary,191000 - Facilities & Management Services - Advertising,
Solihull MBC,Managed Growth and Communities - HRA,Housing Revenue Account,www.Nisbets.com ,25/11/2016,74.11,General Debtors,161000 - Domestic Goods - Commercial,
Solihull MBC,Managed Growth and Communities,Environmental and Regulatory Services,www.Nisbets.com ,25/11/2016,75.57,Purchase Card Statement Summary,161000 - Domestic Goods - Commercial,
Solihull MBC,Adult Social Care,Adult Social Care,www.Pcwb,20/10/2016,-33.31,Catering Provisions,271430 - Information Communication Technology - Software - Commercial Off-The-Shelf,
Solihull MBC,Public Health & Commissioning,Cultural & Related Services,www.Physiotherapystore,31/10/2016,57.46,Furniture & Equipment,311300 - Healthcare - Equipment,
Solihull MBC,Public Health & Commissioning,Cultural & Related Services,www.Physiotherapystore,31/10/2016,66.74,Furniture & Equipment,311300 - Healthcare - Equipment,
Solihull MBC,Managed Growth and Communities - HRA,Housing Revenue Account,www.Posturite.co.uk ,25/11/2016,32.83,General Debtors,211000 - Furniture & Soft Furnishings - Commercial Furniture,
Solihull MBC,Managed Growth and Communities - HRA,Housing Revenue Account,www.Posturite.co.uk ,25/11/2016,42.43,General Debtors,211000 - Furniture & Soft Furnishings - Commercial Furniture,
Solihull MBC,Children's Services & Skills,Children & Education Services,www.Printedpaperproduc,01/11/2016,27.90,Materials,341100 - Stationery - Sundries,
Solihull MBC,Resources,Central Services to the Public,www.Psaparts.co.uk,21/10/2016,54.50,IT Equipment & Software,271600 - Information Communication Technology - Software - Customised & Bespoke,
Solihull MBC,Adult Social Care,Adult Social Care,www.Safetysignsandnoti ,25/11/2016,20.16,Purchase Card Statement Summary,161000 - Domestic Goods - Commercial,
Solihull MBC,Children's Services & Skills,Children & Education Services,www.Schoolstickers.Co. ,25/11/2016,29.94,Purchase Card Statement Summary,349999 - Stationery - Not Elsewhere Classified,
Solihull MBC,Managed Growth and Communities,Planning & Development Services,www.Smmt.co.uk,14/10/2016,120.00,Training,291300 - Arts & Leisure Services - Performing Arts,
Solihull MBC,Adult Social Care,Central Services to the Public,www.Solopress.com ,25/11/2016,63.6,Purchase Card Statement Summary,349999 - Stationery - Not Elsewhere Classified,
Solihull MBC,Resources,Central Services to the Public,www.UK.Insight.com,20/10/2016,6.83,IT Equipment & Software,161000 - Domestic Goods - Commercial,
Solihull MBC,Resources,Central Services to the Public,www.UK.Insight.com,13/10/2016,53.10,IT Equipment & Software,161000 - Domestic Goods - Commercial,
